Workbook

Sheet Info

Sheet Trial (hidden)

Sheet Instructions (hidden)
A1: Excel Skills | Personal Finance Template
A2: Instructions
A3: www.excel-skills.com
A5: This template enables users to record their personal income & expenses and to generate a comprehensive personal finance report for any user defined 12 month period. Transactions can be recorded from an unlimited number of transaction sources like bank accounts and credit cards and the functionality that has been included in the template enables users to easily reconcile the reports to bank account or credit card statements. This template is the ideal solution for measuring household income and expenditure.
A7: The template consists of the following sheets:
A8: Sources - create a unique source code for each transaction source. This sheet also includes transaction totals that can be calculated by simply entering the appropriate Start Date and End Date. The reporting periods that are included in the 12 month personal finance report is also defined on this sheet by simply entering the appropriate Start Date in cell C2.
A9: Accounts - this sheet includes the default accounts list and can be used to edit account descriptions and to add additional accounts to the default accounts list.
A10: Transactions - all personal income and expense transactions should be recorded on this sheet and allocated to the appropriate account by selecting an account code from the list box in column G. Transactions can be recorded by entering the data or copying the data from a bank or credit card statement before pasting the data into the appropriate columns. Income should be recorded as positive values and expenses as negative values.
A11: Report - this sheet includes a 12 month personal income & expenses report. All the calculations on this sheet are automated and the only user input that is required is to ensure that all the accounts that have been added to the Accounts sheet are included on the report. Reporting periods can be amended by simply changing the Start Date in cell C2 on the Sources sheet.
A13: Transaction Sources
A15: As we mentioned before, an unlimited number of bank accounts and credit cards can be included in the template by simply creating a unique transaction source code for each account. The source codes that are created on this sheet are then selected when recording transactions on the Transactions sheet.
A17: We recommend using an alphanumeric code when creating the required source codes and to use descriptive codes that make it easy to distinguish between different transaction sources. The template includes four default source codes but additional source codes can be created by simply entering a new source code in the first empty cell below the Excel table - the table will be extended automatically to include the new source code.
A19: After entering a new transaction source code, users should also enter a unique description of the source code in column B. All the columns with a light blue column heading contain formulas that are automatically copied when a new row is added to the table. The formulas in these columns calculate the opening balance, total income & receipts, total expenses & payments, total contra transactions and the closing balance for each transaction source based on the date range that is defined by entering the appropriate Start Date and End Date.
A21: The opening balance for each transaction source is calculated based on the transactions that are recorded on the Transactions sheet. When you start using the template, you therefore also have to record the initial opening balance for each transaction source on the Transactions sheet by entering the balances at the end of the day prior to the initial template Start Date (specified in cell C2 on the Sources sheet). All transactions after this date should then be recorded on the Transactions sheet.
A23: We've mentioned that the Start Date that is specified on the Sources sheet is used to define the 12 month reporting period that is included on the Report sheet - after specifying the initial Start Date and recording the appropriate opening balances, the Start Date can be amended to include a new 12 month period and the calculation in column C will update the opening balance calculation based on the transactions that have been recorded on the Transactions sheet. Refer to the Opening Balances section under the Recording Transactions heading of the Instructions for more guidance on recording opening balances.
A25: The income & receipts total is calculated as the sum of all the positive values that have been entered on the Transactions sheet for the particular source code (excluding Contra transactions). The expenses & payments total is calculated as the sum of all the negative values that have been entered on the Transactions sheet for the particular source code (also excluding Contra transactions). Both of these totals (as well as the Contra Transactions total) are calculated based on the date range that is defined by entering a Start and an End date in the appropriate cells at the top of the Sources sheet (note that the End Date is optional).
A27: Contra Transactions include all transfers between transaction sources and should be allocated to account 999 when transactions are recorded on the Transactions sheet. The total of the values in this column should therefore always be nil - if this is not the case, the column heading will automatically be highlighted in orange in order to indicate that an imbalance exists. Refer to the Contra Account section under the Recording Transactions heading for more guidance on Contra Transactions.
A29: All the calculations in the calculated columns are based on the date range between the Start Date (cell C2) and the End Date (cell H2). As we've mentioned, the Start Date is also used to define the reporting periods on the Reports sheet and this cell should therefore always contain a date - you'll notice that an error message is displayed if the cell does not contain a valid date.
A31: The End Date can however be left blank - the calculations in the calculated columns will then include all the transactions after the Start Date that have been entered on the Transactions sheet. When you enter a date in the End Date cell, only transactions with a Payment Date between the specified Start Date and End Date will be included in the calculations in the calculated columns. This functionality therefore enables users to easily calculate the transaction source balances based on any user defined date range.
A33: Account Reconciliations
A35: We recommend that you reconcile the closing balances of each transaction source code to the appropriate account statement. This will ensure that all transactions have been recorded accurately on the Transactions sheet.
A37: When you leave the End Date cell blank, all transactions that have been entered on the Transactions sheet are included in the closing balance that is calculated in column H. If you want to reconcile the closing balance of one of the transaction sources to a previous statement, this can be accomplished by simply entering the appropriate statement date in the End Date cell in order to display the calculated closing balance as at the specified statement date.
A39: Note: All the calculations on the Sources sheet are based on the dates that are entered in the Payment Date column on the Transactions sheet, while the calculations on the Report sheet are based on the dates that are entered in the Document Date column. The net account movement on the Sources sheet may therefore differ from the transaction totals on the Report sheet if the document dates and payment dates of transactions are different. We'll discuss the difference between these two transaction date columns in more detail later on in these Instructions.
A41: Accounts
A43: The reporting line items on the monthly personal finance report are based on a three digit account number. The default accounts list is included on the Accounts sheet and consists of 65 accounts that are grouped into nine reporting categories. The reporting categories are listed in column D to F at the top of the Accounts sheet.
A45: The template can be customized to your specific requirements by editing the account descriptions of the default account numbers and you can also add additional accounts to the list by inserting a new row in the appropriate position (according to the account number sequence), entering the appropriate account number and entering a description for the new account. All new accounts should therefore be created by inserting a new row above the "999" account number.
A47: After inserting an additional row and adding an account to the list, you also have to insert a new row on the Report sheet in order to include the new account in the report. If this step is omitted, the account number will be highlighted in orange on the Accounts sheet. Note that if transactions are allocated to an account that is not included on the Report sheet, the report will not be accurate.
A49: Also note that the Contra Account (account 999) is required for the allocation of inter-account transfers and should therefore not be deleted.
A51: When you create a new account, the account number should be determined based on the reporting category that you want the account to be included in. For example, if a new Remuneration type account is created, a three digit account number that starts with a "1" should be used because all the accounts from account number 101 to account number 199 fall into the Remuneration account group.
A53: Recording Transactions
A55: All income and expense transactions should be recorded on the Transactions sheet. You can enter the transaction details or copy the data from the account statements and then simply enter the information that is not included on the statements. The following information needs to be recorded for each transaction:
A57: Document Date
A59: As we've mentioned before, the calculations on the Sources sheet are based on the Payment Date column (the transaction date on the account statement should be recorded in this column).
A61: The monthly personal finance report on the Report sheet is however based on the document date column. The account statement date can also be recorded in this column but in some cases this date may not be appropriate for reporting purposes. For example, you may be paying the rent that is due for a particular month on the last day of the previous month - if you use the account statement date when recording the transaction, the expense will be included in the incorrect monthly period. In order to display the transaction in the correct monthly period, you can simply enter a different date in the Document Date column and still be able to keep track of when the payment was made by referring to the data in the Payment Date column.
A63: Source
A65: The Source column includes a list box which contains all the transaction sources created on the Sources sheet. You can therefore simply select the appropriate transaction source from the list or copy the source code from one of the previous transactions.
A67: Note that you have to create a source code on the Sources sheet before you will be able to allocate transactions to the particular transaction source.
A69: Customer / Supplier
A71: The name of the entity to which the transaction relates should be entered in this column. If the Auto Complete feature is active, Excel should suggest a customer or supplier name after only entering a few characters. Users need to make sure that the same customer / supplier name is used for all similar transactions because this would enable users to filter transactions by this column in order to compile an income or expense report by customer or supplier (use the Auto Filter feature for this purpose).
A73: Transaction Reference
A75: Enter an appropriate transaction reference in this column - this reference should enable you to trace a transaction to its supporting documentation.
A77: Description
A79: Enter a description of the transaction in this column - this description should enable you to determine the nature of the income or expense transaction.
A81: Amount
A83: Enter the transaction amount - income should be recorded as positive values and expenses should be recorded as negative values. The amount should be exactly the same as the amount that is displayed on the account statement - if this is not the case, the template balances will not reconcile back to the account statements.
A85: Note that a total has been included above the column heading. This total is calculated based on all the transactions that are displayed on the Transactions sheet. If you therefore use the AutoFilter feature to filter the data on this sheet, only the filtered data will be included in this total.
A87: Account
A89: This column includes a list box that contains all the account numbers that have been created on the Accounts sheet. It also contains the account description of each account. You therefore have to create the appropriate account before you will be able to allocate transactions to the account.
A91: Excel actually does not allow multiple columns to be included in a list box but we have implemented a workaround in order to provide the account descriptions together with the account numbers, thereby making it easier to allocate transactions to the correct account. In order to accomplish this, we have had to sacrifice some flexibility when entering transactions - you will not be able to enter the account number into column G because an error will be encountered - you therefore have to select the appropriate account number from the list or copy the appropriate account number from one of the previous transactions. A validation error (red triangle in the top left corner of the affected cell) may also be displayed but you can safely ignore this error.
A93: If you find this limitation to be an inconvenience, you can change the Named Range that has been defined as the source of the list box in this column so that only the account number column is included in the list box. The account descriptions will then not be included in the list box and you'll be able to enter the account numbers when recording transactions.
A95: If you select the account description instead of the account number from the list box, you'll notice that the cell is highlighted in orange. This is because the account description is not recognized as a valid account number and will result in the personal finance report being inaccurate. The cell will also be highlighted if an invalid account number is copied into the Account column. If an account number is highlighted, simply select the correct account number from the list box in order to remove the highlighting.
A97: Payment Date
A99: The transaction date on the account statement should be entered or copied into the Payment Date column. As we mentioned before, the calculations on the Sources sheet are based on the dates that are entered in this column. By including the statement date in this column, you will be able to easily determine when income was received or when a payment was made.
A101: Account Description
A103: This column contains a formula that is used to look up the account description on the Accounts sheet based on the account number that has been entered in column G. The formula will be copied automatically when you add new rows on the Transactions sheet because the entries are included in an Excel table. The aim with this calculated column is to make it easy to determine to which account a transaction has been allocated.
A105: Opening Balances
A107: The initial opening balances of each transaction source also need to be recorded on the Transactions sheet. As we've explained before, the initial Start Date needs to be recorded on the Sources sheet and this date determines the reporting periods that are included on the Report sheet.
A109: The account statement balance at the end of the day before the Start Date that is specified should be used as the opening balance and the opening balance transaction should be dated on the day before the Start Date (in both the Document Date and Payment Date columns).
A111: The appropriate source code that is created on the Sources sheet should be entered in the Source column, you can leave the Supplier / Customer column blank, enter a reference like "Statement" in the Reference column and enter a text string that refers to the opening balances in the Description column. The Account that the opening balance is allocated to is not used for reporting purposes because the transaction is dated before the report Start Date but we recommend that you use the Contra account when recording the initial opening balances.
A113: After entering the opening balance transactions, the balances in column C on the Sources sheet should agree to the appropriate statement balances. All transactions on or after the Start Date that is specified should then be recorded on the Transactions sheet and the closing balances on the Sources sheet should reconcile to the account statement at all times. Note that the closing balances are calculated based on the End Date that is specified and will include all transactions if the End Date cell is left blank.
A115: The Start Date can be amended and the opening balances subsequently calculated on the Sources sheet will automatically include all transactions that are dated before the amended Start Date. When you amend the Start Date, the monthly reporting periods are also automatically adjusted in order to include a twelve month period that commences on the Start Date.
A117: Example: If we specify a Start Date of "2010/03/01" on the Sources sheet, the opening balances that we need to record in the Document Date and Payment Date columns on the Transactions sheet should be based on the closing statement balance on the 28th of February 2010. All transactions from the 1st of March 2010 should then be recorded on the Transactions sheet.
A119: Contra Account
A121: All inter-account transfers between transaction sources that are included in the template should be allocated to the Contra Account (account number 999). The net effect of payments from one account and the matching receipts in the other account should therefore be nil. This means that the Contra account balance should always be nil and if this is not the case, the heading on the Sources sheet (cell F5) and the account number and description on the Reports sheet will be highlighted in orange.
A123: Example: A bank account and a credit card account are both included in the template. When we make a payment from the bank account to the credit card account, the payment transaction is recorded on the Transactions sheet, the bank account source code is selected in the Source column, the amount is entered as a negative value and the transaction is allocated to the Contra account (account 999).
A125: The receipt transaction is also recorded on the Transactions sheet (from the information on the credit card statement). The credit card account source code is selected in the Source column, the amount is entered as a positive value and the transaction is also allocated to the Contra account (account 999). Both the payment and receipt transactions should be dated on the same date in both the Document Date and Payment Date columns.
A127: The net effect of the credit card payment is therefore nil and these types of transactions therefore have no influence on the amounts that are included in the personal finance report. Instead, the transactions that were incurred with the credit card are recorded as expenses on the Transactions sheet and included in the personal finance report.
A129: Example 2: If a bank account is included in the template but the credit card account is not included in the template (not recommended), the credit card payments cannot be allocated to the Contra account because there will be no receipt transactions that can offset the payment transactions.
A131: Under these circumstances, you would have to allocate the credit card payments to the appropriate account under the Financing Cost account group.
A133: Personal Finance Report
A135: The personal finance report is included on the Report sheet. All amounts are automatically calculated and the only user input that is required is to specify the reporting periods and to add additional accounts to the report after the accounts have been created on the Accounts sheet.
A137: As we've explained, the Start Date that is specified on the Sources sheet determines the periods that are included in the report. The first month on the report will always be the same as the month that the Start Date falls into but please note that all transactions during this particular month will be included in the report even if the Start Date is not the first day of the particular month.
A139: If you therefore specify a Start Date of 2010/03/15, the first monthly period on the report will be March 2010 and the report will include all transactions from the 1st to the 31st of March.
A141: After a new account has been created on the Accounts sheet, you have to include the account on the report by inserting a new row in the appropriate section of the report, copying the formulas in all the columns with a light blue column heading from one of the existing rows and entering the new account number in column A. All the transactions that are allocated to the new account will then be included in the report.
A143: All accounts created but not included in the personal finance report will be highlighted in orange on the Accounts sheet - this makes it easy to identify accounts that have been omitted from the personal finance report.
A145: Report Filtering
A147: We've also added some innovative filtering functionality to the personal finance reports. The source code selection cell (cell C2) can be used to select one of the transaction sources that have been created on the Sources sheet. When a transaction source is selected in this cell, only the transactions for the particular transaction source will be included in the report. When the cell is blank, all transactions from all transaction sources are included in the report.
A149: You can therefore revert back to displaying all transactions by simply positioning the cursor in cell C2 and pressing the delete key to remove the transaction source code that was previously selected.
A151: Report Totals
A153: The personal finance report includes totals for each line item in column P on the Reports sheet. By default, these totals are calculated for the entire 12 month period that is included in the report but you can elect to only display transaction totals for a user defined date range.
A155: This can be accomplished by simply entering the appropriate "From" and "To" dates in cells P1 and P2 respectively. The total calculations will then be based on the specified date range. Note that you don’t have to enter both dates - if you want to include all transactions after a specified date, enter only a "From" date. Similarly, if you want to include all transactions before a specified date, simply enter only a "To" date.
A157: Roll Forward
A159: Rolling the template forward after the initial twelve month period could not be easier - simply enter a new Start Date on the Sources sheet and all the template calculations will automatically be updated.
A161: Help & Customization
A163: If you experience any difficulty while using this template and you are not able to find the appropriate guidance in these instructions, please e-mail us at support@excel-skills.com for assistance. This template has been designed with flexibility in mind to ensure that it can be used in most business environments. If however you need an Excel based template that is customized specifically for your business requirements, please e-mail our Support function and provide a brief explanation of your requirements.
A165: © Copyright
A167: This template remains the intellectual property of www.excel-skills.com and is protected by international copyright laws. Any publication or distribution of this template outside the scope of the permitted use of the template is expressly prohibited. In terms of the permitted use of this template, only the distribution of the template to persons within the same organisation as the registered user or persons outside the organisation who can reasonably be expected to require access to the template as a direct result of the use of the template by the registered user is allowed. Subsequent distribution of the template by parties outside of the organisation is however expressly prohibited and represents an infringement of international copyright laws.

Sheet Sources (hidden)
A1: Transaction Sources | C1: Start Date | H1: End Date
A2: Bank and Credit Card Accounts | C2: 2020-03-01 | D2: =IF(ISBLANK(C2)=TRUE,"Start Date cannot be blank!","") -> 
A3: © www.excel-skills.com
C4: =SUBTOTAL(109,Source[[#Data],[Opening Balance]]) -> 3771.6 | D4: =SUBTOTAL(109,Source[[#Data],[Income & Receipts]]) -> 490315 | E4: =SUBTOTAL(109,Source[[#Data],[Expenses & Payments]]) -> -472385.07 | F4: =SUBTOTAL(109,Source[[#Data],[Contra Transactions]]) -> 0 | G4: =SUBTOTAL(109,Source[[#Data],[Net Account Movement]]) -> 17929.93 | H4: =SUBTOTAL(109,Source[[#Data],[Closing Balance]]) -> 21701.53
A5: Source Code | B5: Description | C5: Opening Balance | D5: Income & Receipts | E5: Expenses & Payments | F5: Contra Transactions | G5: Net Account Movement | H5: Closing Balance
A6: CACC1 | B6: FNB Current Account | C6: =SUMPRODUCT((TrnSource=$A6)*(PayDate<$C$2)*(TrnAmount)) -> 9120.5 | D6: =IF(ISBLANK($H$2)=TRUE,SUMPRODUCT((PayDate>=$C$2)*(TrnSource=$A6)*(TrnAcc<>999)*(TrnAmount>0)*(TrnAmount)),SUMPRODUCT((PayDate>=$C$2)*(PayDate<=$H$2)*(TrnSource=$A6)*(TrnAcc<>999)*(TrnAmount>0)*(TrnAmount))) -> 490315 | E6: =IF(ISBLANK($H$2)=TRUE,SUMPRODUCT((PayDate>=$C$2)*(TrnSource=$A6)*(TrnAcc<>999)*(TrnAmount<0)*(TrnAmount)),SUMPRODUCT((PayDate>=$C$2)*(PayDate<=$H$2)*(TrnSource=$A6)*(TrnAcc<>999)*(TrnAmount<0)*(TrnAmount))) -> -326119.45 | F6: =IF(ISBLANK($H$2)=TRUE,SUMPRODUCT((PayDate>=$C$2)*(TrnSource=$A6)*(TrnAcc=999)*(TrnAmount)),SUMPRODUCT((PayDate>=$C$2)*(PayDate<=$H$2)*(TrnSource=$A6)*(TrnAcc=999)*(TrnAmount))) -> -161200 | G6: =SUM(D6:F6) -> 2995.55 | H6: =SUM(C6,G6) -> 12116.05
A7: CACC2 | B7: ABSA Cheque Account | C7: =SUMPRODUCT((TrnSource=$A7)*(PayDate<$C$2)*(TrnAmount)) -> 3897.25 | D7: =IF(ISBLANK($H$2)=TRUE,SUMPRODUCT((PayDate>=$C$2)*(TrnSource=$A7)*(TrnAcc<>999)*(TrnAmount>0)*(TrnAmount)),SUMPRODUCT((PayDate>=$C$2)*(PayDate<=$H$2)*(TrnSource=$A7)*(TrnAcc<>999)*(TrnAmount>0)*(TrnAmount))) -> 0 | E7: =IF(ISBLANK($H$2)=TRUE,SUMPRODUCT((PayDate>=$C$2)*(TrnSource=$A7)*(TrnAcc<>999)*(TrnAmount<0)*(TrnAmount)),SUMPRODUCT((PayDate>=$C$2)*(PayDate<=$H$2)*(TrnSource=$A7)*(TrnAcc<>999)*(TrnAmount<0)*(TrnAmount))) -> -14500 | F7: =IF(ISBLANK($H$2)=TRUE,SUMPRODUCT((PayDate>=$C$2)*(TrnSource=$A7)*(TrnAcc=999)*(TrnAmount)),SUMPRODUCT((PayDate>=$C$2)*(PayDate<=$H$2)*(TrnSource=$A7)*(TrnAcc=999)*(TrnAmount))) -> 13000 | G7: =SUM(D7:F7) -> -1500 | H7: =SUM(C7,G7) -> 2397.25
A8: AMXCC1 | B8: American Express Credit Card | C8: =SUMPRODUCT((TrnSource=$A8)*(PayDate<$C$2)*(TrnAmount)) -> -523 | D8: =IF(ISBLANK($H$2)=TRUE,SUMPRODUCT((PayDate>=$C$2)*(TrnSource=$A8)*(TrnAcc<>999)*(TrnAmount>0)*(TrnAmount)),SUMPRODUCT((PayDate>=$C$2)*(PayDate<=$H$2)*(TrnSource=$A8)*(TrnAcc<>999)*(TrnAmount>0)*(TrnAmount))) -> 0 | E8: =IF(ISBLANK($H$2)=TRUE,SUMPRODUCT((PayDate>=$C$2)*(TrnSource=$A8)*(TrnAcc<>999)*(TrnAmount<0)*(TrnAmount)),SUMPRODUCT((PayDate>=$C$2)*(PayDate<=$H$2)*(TrnSource=$A8)*(TrnAcc<>999)*(TrnAmount<0)*(TrnAmount))) -> -111602.58 | F8: =IF(ISBLANK($H$2)=TRUE,SUMPRODUCT((PayDate>=$C$2)*(TrnSource=$A8)*(TrnAcc=999)*(TrnAmount)),SUMPRODUCT((PayDate>=$C$2)*(PayDate<=$H$2)*(TrnSource=$A8)*(TrnAcc=999)*(TrnAmount))) -> 122400 | G8: 10797.42 | H8: 10274.42
A9: MASCC2 | B9: MasterCard Credit Card | C9: =SUMPRODUCT((TrnSource=$A9)*(PayDate<$C$2)*(TrnAmount)) -> -8723.15 | D9: =IF(ISBLANK($H$2)=TRUE,SUMPRODUCT((PayDate>=$C$2)*(TrnSource=$A9)*(TrnAcc<>999)*(TrnAmount>0)*(TrnAmount)),SUMPRODUCT((PayDate>=$C$2)*(PayDate<=$H$2)*(TrnSource=$A9)*(TrnAcc<>999)*(TrnAmount>0)*(TrnAmount))) -> 0 | E9: =IF(ISBLANK($H$2)=TRUE,SUMPRODUCT((PayDate>=$C$2)*(TrnSource=$A9)*(TrnAcc<>999)*(TrnAmount<0)*(TrnAmount)),SUMPRODUCT((PayDate>=$C$2)*(PayDate<=$H$2)*(TrnSource=$A9)*(TrnAcc<>999)*(TrnAmount<0)*(TrnAmount))) -> -20163.04 | F9: =IF(ISBLANK($H$2)=TRUE,SUMPRODUCT((PayDate>=$C$2)*(TrnSource=$A9)*(TrnAcc=999)*(TrnAmount)),SUMPRODUCT((PayDate>=$C$2)*(PayDate<=$H$2)*(TrnSource=$A9)*(TrnAcc=999)*(TrnAmount))) -> 25800 | G9: 5636.96 | H9: -3086.19

Sheet Accounts (hidden)
A1: Accounts Set-up
A2: © www.excel-skills.com
A3: Account Number | B3: Account Description
A4: 101 | B4: Gross Remuneration | D4: Account Groups
A5: 105 | B5: Commission Received | D5: 100 | E5: Remuneration
A6: 110 | B6: Total Allowances | D6: 200 | E6: Deductions
A7: 115 | B7: Subsidies Received | D7: 300 | E7: Other Income & Receipts
A8: 190 | B8: Other Remuneration | D8: 400 | E8: Expenses
A9: 201 | B9: Income Tax | D9: 500 | E9: Financing Costs & Bank Charges
A10: 205 | B10: Pension Fund | D10: 600 | E10: Investments & Assets
A11: 210 | B11: Medical Aid | D11: 700 | E11: Entertainment & Leisure Costs
A12: 215 | B12: Unemployment Insurance | D12: 999 | E12: Contra Account
A13: 220 | B13: Retirement Annuities
A14: 290 | B14: Other Deductions
A15: 301 | B15: Dividend Income
A16: 305 | B16: Interest Received
A17: 310 | B17: Income from Pension
A18: 315 | B18: Income from Annuities
A19: 350 | B19: Loans Received
A20: 390 | B20: Other Income
A21: 401 | B21: Rent Paid
A22: 404 | B22: Water, Electricity & Services
A23: 407 | B23: Property Rates & Taxes
A24: 410 | B24: Repairs & Maintenance
A25: 413 | B25: Property Levies
A26: 416 | B26: Telephone
A27: 419 | B27: Cell Phone
A28: 422 | B28: Internet Access
A29: 425 | B29: Insurance - Short Term
A30: 428 | B30: Insurance - Life
A31: 431 | B31: Medical Costs
A32: 434 | B32: Donations
A33: 437 | B33: Education Cost
A34: 440 | B34: Fuel & Vehicle Maintenance
A35: 443 | B35: Television Subscription
A36: 446 | B36: Memberships
A37: 449 | B37: Subscriptions
A38: 452 | B38: Domestic Wages
A39: 455 | B39: Gardening
A40: 458 | B40: Groceries
A41: 461 | B41: Clothing
A42: 464 | B42: Maintenance Payments
A43: 467 | B43: Security Costs
A44: 490 | B44: Other Expenses
A45: 501 | B45: Home Loan Repayments - Primary Residence
A46: 505 | B46: Personal Loan Instalments
A47: 510 | B47: Financing - Motor Vehicles
A48: 515 | B48: Financing - Computers
A49: 520 | B49: Financing - Furniture
A50: 525 | B50: Credit Card Repayments
A51: 530 | B51: Bank Charges
A52: 535 | B52: Interest Paid
A53: 540 | B53: Cash Withdrawal Fees
A54: 590 | B54: Other Financing Costs
A55: 601 | B55: Property Rental Income
A56: 605 | B56: Home Loan Repayments - Buy to Let
A57: 610 | B57: Investment - Retirement Annuities
A58: 615 | B58: Investment - Shares
A59: 620 | B59: Investment - Money Market
A60: 625 | B60: Furniture & Equipment
A61: 690 | B61: Other Assets
A62: 695 | B62: Other Investments
A63: 701 | B63: Entertainment - Restaurants
A64: 705 | B64: Entertainment - Bars
A65: 710 | B65: Entertainment - Other
A66: 715 | B66: Travel & Accommodation
A67: 790 | B67: Other Expenses
A68: 999 | B68: Contra Account

Sheet Transactions (hidden)
A1: Transactions
A2: © www.excel-skills.com | F2: =SUBTOTAL(109,Trans[[#Data],[Amount]]) -> 21701.53
A3: Document Date | B3: Source | C3: Customer / Supplier | D3: Reference | E3: Description | F3: Amount | G3: Account | H3: Payment Date | I3: Account Description
A4: 2020-02-28 | B4: CACC1 | C4: Opening Balance | D4: Bank Statement | E4: Opening Balance | F4: 9120.5 | G4: 999 | H4: 2020-02-28 | I4: =IF(ISNA(VLOOKUP(G4,Accounts,2,0))=TRUE,"Account does not exist",VLOOKUP(G4,Accounts,2,0)) -> Contra Account
A5: 2020-02-28 | B5: CACC2 | C5: Opening Balance | D5: Bank Statement | E5: Opening Balance | F5: 3897.25 | G5: 999 | H5: 2020-02-28 | I5: Contra Account
A6: 2020-02-28 | B6: AMXCC1 | C6: Opening Balance | D6: C/C Statement | E6: Opening Balance | F6: -523 | G6: 999 | H6: 2020-02-28 | I6: Contra Account
A7: 2020-02-28 | B7: MASCC2 | C7: Opening Balance | D7: C/C Statement | E7: Opening Balance | F7: -8723.15 | G7: 999 | H7: 2020-02-28 | I7: Contra Account
A8: 2020-03-01 | B8: CACC1 | C8: Landlord XY | D8: Debit Order | E8: Rent - March | F8: -6100 | G8: 401 | H8: 2020-03-01 | I8: Rent Paid
A9: 2020-03-01 | B9: CACC1 | C9: Mutual & Federal | D9: Debit Order | E9: Insurance | F9: -152 | G9: 425 | H9: 2020-03-01 | I9: Insurance - Short Term
A10: 2020-03-01 | B10: CACC1 | C10: Liberty International | D10: Debit Order | E10: Life Insurance | F10: -561 | G10: 428 | H10: 2020-03-01 | I10: Insurance - Life
A11: 2020-03-01 | B11: CACC1 | C11: Multichoice | D11: Debit Order | E11: DSTV Subscription | F11: -573 | G11: 443 | H11: 2020-03-01 | I11: Television Subscription
A12: 2020-03-01 | B12: MASCC2 | C12: ABSA | D12: C/C Statement | E12: Interest | F12: -92.56 | G12: 535 | H12: 2020-03-01 | I12: Interest Paid
A13: 2020-03-02 | B13: AMXCC1 | C13: SPAR | D13: Statement | E13: SPAR | F13: -832 | G13: 458 | H13: 2020-03-02 | I13: Groceries
A14: 2020-03-08 | B14: MASCC2 | C14: Engen | D14: Statement | E14: Fuel | F14: -432 | G14: 440 | H14: 2020-03-08 | I14: Fuel & Vehicle Maintenance
A15: 2020-03-09 | B15: AMXCC1 | C15: La Salla | D15: Statement | E15: La Salla | F15: -332 | G15: 701 | H15: 2020-03-09 | I15: Entertainment - Restaurants
A16: 2020-03-12 | B16: CACC1 | C16: FNB | D16: Bank Statement | E16: Cash Withdrawal Fee | F16: -10.7 | G16: 540 | H16: 2020-03-12 | I16: Cash Withdrawal Fees
A17: 2020-03-17 | B17: AMXCC1 | C17: PicknPay | D17: Statement | E17: PicknPay | F17: -810 | G17: 458 | H17: 2020-03-17 | I17: Groceries
A18: 2020-03-19 | B18: MASCC2 | C18: Sasol | D18: Statement | E18: Fuel | F18: -410 | G18: 440 | H18: 2020-03-19 | I18: Fuel & Vehicle Maintenance
A19: 2020-03-22 | B19: AMXCC1 | C19: Pigato's | D19: Statement | E19: Pigato's | F19: -310 | G19: 701 | H19: 2020-03-22 | I19: Entertainment - Restaurants
A20: 2020-03-23 | B20: CACC1 | C20: FNB | D20: Bank Statement | E20: C/C Repayment | F20: -10200 | G20: 999 | H20: 2020-03-23 | I20: Contra Account
A21: 2020-03-23 | B21: AMXCC1 | C21: FNB | D21: C/C Statement | E21: C/C Repayment | F21: 10200 | G21: 999 | H21: 2020-03-23 | I21: Contra Account
A22: 2020-03-25 | B22: CACC1 | C22: Employer Name | D22: Payslip | E22: Gross Salary - March | F22: 36500 | G22: 101 | H22: 2020-03-25 | I22: Gross Remuneration
A23: 2020-03-25 | B23: CACC1 | C23: Employer Name | D23: Payslip | E23: Income Tax - March | F23: -9178.67 | G23: 201 | H23: 2020-03-25 | I23: Income Tax
A24: 2020-03-25 | B24: CACC1 | C24: Employer Name | D24: Payslip | E24: Pension Fund - March | F24: -2737.5 | G24: 205 | H24: 2020-03-25 | I24: Pension Fund
A25: 2020-03-25 | B25: CACC1 | C25: Employer Name | D25: Payslip | E25: Medical Aid - March | F25: -877 | G25: 210 | H25: 2020-03-25 | I25: Medical Aid
A26: 2020-03-25 | B26: CACC1 | C26: Employer Name | D26: Payslip | E26: Unemployment Fund - March | F26: -182.5 | G26: 215 | H26: 2020-03-25 | I26: Unemployment Insurance
A27: 2020-03-25 | B27: CACC1 | C27: FNB | D27: Bank Statement | E27: Monthly Service Fees | F27: -162 | G27: 530 | H27: 2020-03-25 | I27: Bank Charges
A28: 2020-03-26 | B28: AMXCC1 | C28: FNB | D28: C/C Statement | E28: Interest | F28: -178.29 | G28: 535 | H28: 2020-03-26 | I28: Interest Paid
A29: 2020-03-28 | B29: CACC1 | C29: City of Cape Town | D29: Debit Order | E29: Water & Electricity | F29: -450 | G29: 404 | H29: 2020-03-28 | I29: Water, Electricity & Services
A30: 2020-03-28 | B30: CACC1 | C30: Telkom | D30: Debit Order | E30: ADSL Rental | F30: -289 | G30: 416 | H30: 2020-03-28 | I30: Telephone
A31: 2020-03-28 | B31: CACC1 | C31: Vodacom | D31: Debit Order | E31: Cell Phone Charges | F31: -523.6 | G31: 419 | H31: 2020-03-28 | I31: Cell Phone
A32: 2020-03-29 | B32: CACC1 | C32: Mweb | D32: Debit Order | E32: Internet Service Provider | F32: -152 | G32: 422 | H32: 2020-03-29 | I32: Internet Access
A33: 2020-03-29 | B33: CACC1 | C33: ADT | D33: Debit Order | E33: Security Cost | F33: -287 | G33: 467 | H33: 2020-03-29 | I33: Security Costs
A34: 2020-03-29 | B34: CACC1 | C34: Wesbank | D34: Debit Order | E34: Motor Vehicle Instalment | F34: -3331 | G34: 510 | H34: 2020-03-29 | I34: Financing - Motor Vehicles
A35: 2020-03-29 | B35: CACC1 | C35: FNB | D35: Bank Statement | E35: C/C Repayment | F35: -2150 | G35: 999 | H35: 2020-03-29 | I35: Contra Account
A36: 2020-03-29 | B36: MASCC2 | C36: ABSA | D36: C/C Statement | E36: C/C Repayment | F36: 2150 | G36: 999 | H36: 2020-03-29 | I36: Contra Account
A37: 2020-03-30 | B37: MASCC2 | C37: Total | D37: Statement | E37: Fuel | F37: -467 | G37: 440 | H37: 2020-03-30 | I37: Fuel & Vehicle Maintenance
A38: 2020-03-30 | B38: CACC1 | C38: FNB | D38: Bank Statement | E38: Cash Withdrawal Fee | F38: -10.7 | G38: 540 | H38: 2020-03-30 | I38: Cash Withdrawal Fees
A39: 2020-03-31 | B39: CACC1 | C39: D Domestic | D39: Cash | E39: Cleaning | F39: -620 | G39: 452 | H39: 2020-03-31 | I39: Domestic Wages
A40: 2020-04-01 | B40: CACC1 | C40: Landlord XY | D40: Debit Order | E40: Rent - April | F40: -6100 | G40: 401 | H40: 2020-04-01 | I40: Rent Paid
A41: 2020-04-01 | B41: CACC1 | C41: Mutual & Federal | D41: Debit Order | E41: Insurance | F41: -152 | G41: 425 | H41: 2020-04-01 | I41: Insurance - Short Term
A42: 2020-04-01 | B42: CACC1 | C42: Liberty International | D42: Debit Order | E42: Life Insurance | F42: -561 | G42: 428 | H42: 2020-04-01 | I42: Insurance - Life
A43: 2020-04-01 | B43: CACC1 | C43: Multichoice | D43: Debit Order | E43: DSTV Subscription | F43: -573 | G43: 443 | H43: 2020-04-01 | I43: Television Subscription
A44: 2020-04-01 | B44: AMXCC1 | C44: Shoprite | D44: Statement | E44: Shoprite | F44: -867 | G44: 458 | H44: 2020-04-01 | I44: Groceries
A45: 2020-04-01 | B45: MASCC2 | C45: ABSA | D45: C/C Statement | E45: Interest | F45: -91.48 | G45: 535 | H45: 2020-04-01 | I45: Interest Paid
A46: 2020-04-04 | B46: AMXCC1 | C46: Wimpy | D46: Statement | E46: Wimpy | F46: -367 | G46: 701 | H46: 2020-04-04 | I46: Entertainment - Restaurants
A47: 2020-04-10 | B47: MASCC2 | C47: BP | D47: Statement | E47: Fuel | F47: -472 | G47: 440 | H47: 2020-04-10 | I47: Fuel & Vehicle Maintenance
A48: 2020-04-16 | B48: AMXCC1 | C48: Woolworths | D48: Statement | E48: Woolworths | F48: -872 | G48: 458 | H48: 2020-04-16 | I48: Groceries
A49: 2020-04-17 | B49: CACC1 | C49: FNB | D49: Bank Statement | E49: Cash Withdrawal Fee | F49: -10.7 | G49: 540 | H49: 2020-04-17 | I49: Cash Withdrawal Fees
A50: 2020-04-17 | B50: AMXCC1 | C50: Angelos | D50: Statement | E50: Angelos | F50: -372 | G50: 701 | H50: 2020-04-17 | I50: Entertainment - Restaurants
A51: 2020-04-21 | B51: MASCC2 | C51: Caltex | D51: Statement | E51: Fuel | F51: -489.5 | G51: 440 | H51: 2020-04-21 | I51: Fuel & Vehicle Maintenance
A52: 2020-04-23 | B52: CACC1 | C52: FNB | D52: Bank Statement | E52: C/C Repayment | F52: -10200 | G52: 999 | H52: 2020-04-23 | I52: Contra Account
A53: 2020-04-23 | B53: AMXCC1 | C53: FNB | D53: C/C Statement | E53: C/C Repayment | F53: 10200 | G53: 999 | H53: 2020-04-23 | I53: Contra Account
A54: 2020-04-25 | B54: CACC1 | C54: Employer Name | D54: Payslip | E54: Gross Salary - April | F54: 36500 | G54: 101 | H54: 2020-04-25 | I54: Gross Remuneration
A55: 2020-04-25 | B55: CACC1 | C55: Employer Name | D55: Payslip | E55: Income Tax - April | F55: -9178.67 | G55: 201 | H55: 2020-04-25 | I55: Income Tax
A56: 2020-04-25 | B56: CACC1 | C56: Employer Name | D56: Payslip | E56: Pension Fund - April | F56: -2737.5 | G56: 205 | H56: 2020-04-25 | I56: Pension Fund
A57: 2020-04-25 | B57: CACC1 | C57: Employer Name | D57: Payslip | E57: Medical Aid - April | F57: -877 | G57: 210 | H57: 2020-04-25 | I57: Medical Aid
A58: 2020-04-25 | B58: CACC1 | C58: Employer Name | D58: Payslip | E58: Unemployment Fund - April | F58: -182.5 | G58: 215 | H58: 2020-04-25 | I58: Unemployment Insurance
A59: 2020-04-25 | B59: CACC1 | C59: FNB | D59: Bank Statement | E59: Monthly Service Fees | F59: -168 | G59: 530 | H59: 2020-04-25 | I59: Bank Charges
A60: 2020-04-26 | B60: AMXCC1 | C60: FNB | D60: C/C Statement | E60: Interest | F60: -190.38 | G60: 535 | H60: 2020-04-26 | I60: Interest Paid
A61: 2020-04-27 | B61: CACC1 | C61: City of Cape Town | D61: Debit Order | E61: Water & Electricity | F61: -348 | G61: 404 | H61: 2020-04-27 | I61: Water, Electricity & Services
A62: 2020-04-27 | B62: CACC1 | C62: Telkom | D62: Debit Order | E62: ADSL Rental | F62: -289 | G62: 416 | H62: 2020-04-27 | I62: Telephone
A63: 2020-04-27 | B63: CACC1 | C63: Vodacom | D63: Debit Order | E63: Cell Phone Charges | F63: -523.6 | G63: 419 | H63: 2020-04-27 | I63: Cell Phone
A64: 2020-04-29 | B64: CACC1 | C64: Mweb | D64: Debit Order | E64: Internet Service Provider | F64: -152 | G64: 422 | H64: 2020-04-29 | I64: Internet Access
A65: 2020-04-29 | B65: CACC1 | C65: ADT | D65: Debit Order | E65: Security Cost | F65: -287 | G65: 467 | H65: 2020-04-29 | I65: Security Costs
A66: 2020-04-29 | B66: CACC1 | C66: Wesbank | D66: Debit Order | E66: Motor Vehicle Instalment | F66: -3331 | G66: 510 | H66: 2020-04-29 | I66: Financing - Motor Vehicles
A67: 2020-04-29 | B67: CACC1 | C67: FNB | D67: Bank Statement | E67: C/C Repayment | F67: -2150 | G67: 999 | H67: 2020-04-29 | I67: Contra Account
A68: 2020-04-29 | B68: MASCC2 | C68: ABSA | D68: C/C Statement | E68: C/C Repayment | F68: 2150 | G68: 999 | H68: 2020-04-29 | I68: =IF(ISNA(VLOOKUP(G68,Accounts,2,0))=TRUE,"Account does not exist",VLOOKUP(G68,Accounts,2,0)) -> Contra Account
A69: 2020-04-30 | B69: CACC1 | C69: D Domestic | D69: Cash | E69: Cleaning | F69: -620 | G69: 452 | H69: 2020-04-30 | I69: Domestic Wages
A70: 2020-04-30 | B70: AMXCC1 | C70: Grill & Butcher | D70: Statement | E70: Grill & Butcher | F70: -339.5 | G70: 701 | H70: 2020-04-30 | I70: Entertainment - Restaurants
A71: 2020-05-01 | B71: CACC1 | C71: Landlord XY | D71: Debit Order | E71: Rent - May | F71: -6100 | G71: 401 | H71: 2020-05-01 | I71: Rent Paid
A72: 2020-05-01 | B72: CACC1 | C72: Mutual & Federal | D72: Debit Order | E72: Insurance | F72: -152 | G72: 425 | H72: 2020-05-01 | I72: Insurance - Short Term
A73: 2020-05-01 | B73: CACC1 | C73: Liberty International | D73: Debit Order | E73: Life Insurance | F73: -561 | G73: 428 | H73: 2020-05-01 | I73: Insurance - Life
A74: 2020-05-01 | B74: CACC1 | C74: Multichoice | D74: Debit Order | E74: DSTV Subscription | F74: -573 | G74: 443 | H74: 2020-05-01 | I74: Television Subscription
A75: 2020-05-01 | B75: AMXCC1 | C75: SPAR | D75: Statement | E75: SPAR | F75: -889.5 | G75: 458 | H75: 2020-05-01 | I75: Groceries
A76: 2020-05-01 | B76: MASCC2 | C76: ABSA | D76: C/C Statement | E76: Interest | F76: -90.4 | G76: 535 | H76: 2020-05-01 | I76: Interest Paid
A77: 2020-05-02 | B77: MASCC2 | C77: Engen | D77: Statement | E77: Fuel | F77: -407.2 | G77: 440 | H77: 2020-05-02 | I77: Fuel & Vehicle Maintenance
A78: 2020-05-03 | B78: CACC1 | C78: BOE Stock Brokers | D78: Bank Statement | E78: Dividend - ABC Trading Limited | F78: 12865 | G78: 301 | H78: 2020-05-03 | I78: Dividend Income
A79: 2020-05-05 | B79: CACC1 | C79: FNB | D79: Bank Statement | E79: Cash Withdrawal Fee | F79: -10.7 | G79: 540 | H79: 2020-05-05 | I79: Cash Withdrawal Fees
A80: 2020-05-12 | B80: CACC1 | C80: Animal Shelter | D80: Debit Order | E80: Charity | F80: -907 | G80: 434 | H80: 2020-05-12 | I80: Donations
A81: 2020-05-13 | B81: MASCC2 | C81: Sasol | D81: Statement | E81: Fuel | F81: -524.9 | G81: 440 | H81: 2020-05-13 | I81: Fuel & Vehicle Maintenance
A82: 2020-05-13 | B82: AMXCC1 | C82: Quay7 | D82: Statement | E82: Quay7 | F82: -307.2 | G82: 701 | H82: 2020-05-13 | I82: Entertainment - Restaurants
A83: 2020-05-16 | B83: AMXCC1 | C83: PicknPay | D83: Statement | E83: PicknPay | F83: -807.2 | G83: 458 | H83: 2020-05-16 | I83: Groceries
A84: 2020-05-23 | B84: CACC1 | C84: FNB | D84: Bank Statement | E84: Cash Withdrawal Fee | F84: -10.7 | G84: 540 | H84: 2020-05-23 | I84: Cash Withdrawal Fees
A85: 2020-05-23 | B85: CACC1 | C85: FNB | D85: Bank Statement | E85: C/C Repayment | F85: -10200 | G85: 999 | H85: 2020-05-23 | I85: Contra Account
A86: 2020-05-23 | B86: AMXCC1 | C86: FNB | D86: C/C Statement | E86: C/C Repayment | F86: 10200 | G86: 999 | H86: 2020-05-23 | I86: Contra Account
A87: 2020-05-24 | B87: MASCC2 | C87: Total | D87: Statement | E87: Fuel | F87: -542.6 | G87: 440 | H87: 2020-05-24 | I87: Fuel & Vehicle Maintenance
A88: 2020-05-25 | B88: CACC1 | C88: Employer Name | D88: Payslip | E88: Gross Salary - May | F88: 36500 | G88: 101 | H88: 2020-05-25 | I88: Gross Remuneration
A89: 2020-05-25 | B89: CACC1 | C89: Employer Name | D89: Payslip | E89: Income Tax - May | F89: -9178.67 | G89: 201 | H89: 2020-05-25 | I89: Income Tax
A90: 2020-05-25 | B90: CACC1 | C90: Employer Name | D90: Payslip | E90: Pension Fund - May | F90: -2737.5 | G90: 205 | H90: 2020-05-25 | I90: Pension Fund
A91: 2020-05-25 | B91: CACC1 | C91: Employer Name | D91: Payslip | E91: Medical Aid - May | F91: -877 | G91: 210 | H91: 2020-05-25 | I91: Medical Aid
A92: 2020-05-25 | B92: CACC1 | C92: Employer Name | D92: Payslip | E92: Unemployment Fund - May | F92: -182.5 | G92: 215 | H92: 2020-05-25 | I92: Unemployment Insurance
A93: 2020-05-25 | B93: CACC1 | C93: FNB | D93: Bank Statement | E93: Monthly Service Fees | F93: -161 | G93: 530 | H93: 2020-05-25 | I93: Bank Charges
A94: 2020-05-26 | B94: AMXCC1 | C94: FNB | D94: C/C Statement | E94: Interest | F94: -182.42 | G94: 535 | H94: 2020-05-26 | I94: Interest Paid
A95: 2020-05-26 | B95: AMXCC1 | C95: Bethas | D95: Statement | E95: Bethas | F95: -624.9 | G95: 701 | H95: 2020-05-26 | I95: Entertainment - Restaurants
A96: 2020-05-28 | B96: CACC1 | C96: City of Cape Town | D96: Debit Order | E96: Water & Electricity | F96: -432 | G96: 404 | H96: 2020-05-28 | I96: Water, Electricity & Services
A97: 2020-05-28 | B97: CACC1 | C97: Telkom | D97: Debit Order | E97: ADSL Rental | F97: -289 | G97: 416 | H97: 2020-05-28 | I97: Telephone
A98: 2020-05-28 | B98: CACC1 | C98: Vodacom | D98: Debit Order | E98: Cell Phone Charges | F98: -523.6 | G98: 419 | H98: 2020-05-28 | I98: Cell Phone
A99: 2020-05-29 | B99: CACC1 | C99: Mweb | D99: Debit Order | E99: Internet Service Provider | F99: -152 | G99: 422 | H99: 2020-05-29 | I99: Internet Access
A100: 2020-05-29 | B100: CACC1 | C100: ADT | D100: Debit Order | E100: Security Cost | F100: -287 | G100: 467 | H100: 2020-05-29 | I100: Security Costs
A101: 2020-05-29 | B101: CACC1 | C101: Wesbank | D101: Debit Order | E101: Motor Vehicle Instalment | F101: -3331 | G101: 510 | H101: 2020-05-29 | I101: Financing - Motor Vehicles
A102: 2020-05-29 | B102: CACC1 | C102: FNB | D102: Bank Statement | E102: C/C Repayment | F102: -2150 | G102: 999 | H102: 2020-05-29 | I102: Contra Account
A103: 2020-05-29 | B103: MASCC2 | C103: ABSA | D103: C/C Statement | E103: C/C Repayment | F103: 2150 | G103: 999 | H103: 2020-05-29 | I103: Contra Account
A104: 2020-05-31 | B104: CACC1 | C104: D Domestic | D104: Cash | E104: Cleaning | F104: -620 | G104: 452 | H104: 2020-05-31 | I104: Domestic Wages
A105: 2020-05-31 | B105: AMXCC1 | C105: Shoprite | D105: Statement | E105: Shoprite | F105: -724.9 | G105: 458 | H105: 2020-05-31 | I105: Groceries
A106: 2020-06-01 | B106: CACC1 | C106: Landlord XY | D106: Debit Order | E106: Rent - June | F106: -6100 | G106: 401 | H106: 2020-06-01 | I106: Rent Paid
A107: 2020-06-01 | B107: CACC1 | C107: Mutual & Federal | D107: Debit Order | E107: Insurance | F107: -152 | G107: 425 | H107: 2020-06-01 | I107: Insurance - Short Term
A108: 2020-06-01 | B108: CACC1 | C108: Liberty International | D108: Debit Order | E108: Life Insurance | F108: -561 | G108: 428 | H108: 2020-06-01 | I108: Insurance - Life
A109: 2020-06-01 | B109: CACC1 | C109: Multichoice | D109: Debit Order | E109: DSTV Subscription | F109: -573 | G109: 443 | H109: 2020-06-01 | I109: Television Subscription
A110: 2020-06-01 | B110: MASCC2 | C110: ABSA | D110: C/C Statement | E110: Interest | F110: -89.32 | G110: 535 | H110: 2020-06-01 | I110: Interest Paid
A111: 2020-06-02 | B111: CACC1 | C111: FNB | D111: Bank Statement | E111: Transfer to Current Account 1 | F111: -13000 | G111: 999 | H111: 2020-06-02 | I111: Contra Account
A112: 2020-06-02 | B112: CACC2 | C112: ABSA | D112: Bank Statement | E112: Transfer from Current Account 2 | F112: 13000 | G112: 999 | H112: 2020-06-02 | I112: Contra Account
A113: 2020-06-04 | B113: MASCC2 | C113: BP | D113: Statement | E113: Fuel | F113: -560.3 | G113: 440 | H113: 2020-06-04 | I113: Fuel & Vehicle Maintenance
A114: 2020-06-08 | B114: AMXCC1 | C114: La Salla | D114: Statement | E114: La Salla | F114: -642.6 | G114: 701 | H114: 2020-06-08 | I114: Entertainment - Restaurants
A115: 2020-06-10 | B115: CACC1 | C115: FNB | D115: Bank Statement | E115: Cash Withdrawal Fee | F115: -10.7 | G115: 540 | H115: 2020-06-10 | I115: Cash Withdrawal Fees
A116: 2020-06-13 | B116: CACC2 | C116: BOE Stock Brokers | D116: Statement | E116: Shares - AGT Company | F116: -14500 | G116: 615 | H116: 2020-06-13 | I116: Investment - Shares
A117: 2020-06-15 | B117: CACC1 | C117: Drain Surgeon | D117: Invoice | E117: Plumbing | F117: -1297.21 | G117: 410 | H117: 2020-06-15 | I117: Repairs & Maintenance
A118: 2020-06-15 | B118: MASCC2 | C118: Caltex | D118: Statement | E118: Fuel | F118: -578 | G118: 440 | H118: 2020-06-15 | I118: Fuel & Vehicle Maintenance
A119: 2020-06-15 | B119: AMXCC1 | C119: Woolworths | D119: Statement | E119: Woolworths | F119: -742.6 | G119: 458 | H119: 2020-06-15 | I119: Groceries
A120: 2020-06-21 | B120: AMXCC1 | C120: Pigato's | D120: Statement | E120: Pigato's | F120: -660.3 | G120: 701 | H120: 2020-06-21 | I120: Entertainment - Restaurants
A121: 2020-06-23 | B121: CACC1 | C121: FNB | D121: Bank Statement | E121: C/C Repayment | F121: -10200 | G121: 999 | H121: 2020-06-23 | I121: Contra Account
A122: 2020-06-23 | B122: AMXCC1 | C122: ABSA | D122: C/C Statement | E122: C/C Repayment | F122: 10200 | G122: 999 | H122: 2020-06-23 | I122: Contra Account
A123: 2020-06-25 | B123: CACC1 | C123: Employer Name | D123: Payslip | E123: Gross Salary - June | F123: 36500 | G123: 101 | H123: 2020-06-25 | I123: Gross Remuneration
A124: 2020-06-25 | B124: CACC1 | C124: Employer Name | D124: Payslip | E124: Income Tax - June | F124: -9178.67 | G124: 201 | H124: 2020-06-25 | I124: Income Tax
A125: 2020-06-25 | B125: CACC1 | C125: Employer Name | D125: Payslip | E125: Pension Fund - June | F125: -2737.5 | G125: 205 | H125: 2020-06-25 | I125: Pension Fund
A126: 2020-06-25 | B126: CACC1 | C126: Employer Name | D126: Payslip | E126: Medical Aid - June | F126: -877 | G126: 210 | H126: 2020-06-25 | I126: Medical Aid
A127: 2020-06-25 | B127: CACC1 | C127: Employer Name | D127: Payslip | E127: Unemployment Fund - June | F127: -182.5 | G127: 215 | H127: 2020-06-25 | I127: Unemployment Insurance
A128: 2020-06-25 | B128: CACC1 | C128: FNB | D128: Bank Statement | E128: Monthly Service Fees | F128: -169 | G128: 530 | H128: 2020-06-25 | I128: Bank Charges
A129: 2020-06-26 | B129: MASCC2 | C129: Caltex | D129: Statement | E129: Fuel | F129: -595.7 | G129: 440 | H129: 2020-06-26 | I129: Fuel & Vehicle Maintenance
A130: 2020-06-26 | B130: AMXCC1 | C130: FNB | D130: C/C Statement | E130: Interest | F130: -177.29 | G130: 535 | H130: 2020-06-26 | I130: Interest Paid
A131: 2020-06-28 | B131: CACC1 | C131: City of Cape Town | D131: Debit Order | E131: Water & Electricity | F131: -542 | G131: 404 | H131: 2020-06-28 | I131: Water, Electricity & Services
A132: 2020-06-28 | B132: CACC1 | C132: Telkom | D132: Debit Order | E132: ADSL Rental | F132: -289 | G132: 416 | H132: 2020-06-28 | I132: =IF(ISNA(VLOOKUP(G132,Accounts,2,0))=TRUE,"Account does not exist",VLOOKUP(G132,Accounts,2,0)) -> Telephone
A133: 2020-06-28 | B133: CACC1 | C133: Vodacom | D133: Debit Order | E133: Cell Phone Charges | F133: -523.6 | G133: 419 | H133: 2020-06-28 | I133: Cell Phone
A134: 2020-06-28 | B134: CACC1 | C134: FNB | D134: Bank Statement | E134: Cash Withdrawal Fee | F134: -10.7 | G134: 540 | H134: 2020-06-28 | I134: Cash Withdrawal Fees
A135: 2020-06-29 | B135: CACC1 | C135: Mweb | D135: Debit Order | E135: Internet Service Provider | F135: -152 | G135: 422 | H135: 2020-06-29 | I135: Internet Access
A136: 2020-06-29 | B136: CACC1 | C136: ADT | D136: Debit Order | E136: Security Cost | F136: -287 | G136: 467 | H136: 2020-06-29 | I136: Security Costs
A137: 2020-06-29 | B137: CACC1 | C137: Wesbank | D137: Debit Order | E137: Motor Vehicle Instalment | F137: -3331 | G137: 510 | H137: 2020-06-29 | I137: Financing - Motor Vehicles
A138: 2020-06-29 | B138: CACC1 | C138: FNB | D138: Bank Statement | E138: C/C Repayment | F138: -2150 | G138: 999 | H138: 2020-06-29 | I138: Contra Account
A139: 2020-06-29 | B139: MASCC2 | C139: ABSA | D139: C/C Statement | E139: C/C Repayment | F139: 2150 | G139: 999 | H139: 2020-06-29 | I139: Contra Account
A140: 2020-06-30 | B140: CACC1 | C140: D Domestic | D140: Cash | E140: Cleaning | F140: -620 | G140: 452 | H140: 2020-06-30 | I140: Domestic Wages
A141: 2020-06-30 | B141: AMXCC1 | C141: SPAR | D141: Statement | E141: SPAR | F141: -760.3 | G141: 458 | H141: 2020-06-30 | I141: Groceries
A142: 2020-07-01 | B142: CACC1 | C142: Landlord XY | D142: Debit Order | E142: Rent - July | F142: -6100 | G142: 401 | H142: 2020-07-01 | I142: Rent Paid
A143: 2020-07-01 | B143: CACC1 | C143: Mutual & Federal | D143: Debit Order | E143: Insurance | F143: -152 | G143: 425 | H143: 2020-07-01 | I143: Insurance - Short Term
A144: 2020-07-01 | B144: CACC1 | C144: Liberty International | D144: Debit Order | E144: Life Insurance | F144: -561 | G144: 428 | H144: 2020-07-01 | I144: Insurance - Life
A145: 2020-07-01 | B145: CACC1 | C145: Multichoice | D145: Debit Order | E145: DSTV Subscription | F145: -573 | G145: 443 | H145: 2020-07-01 | I145: Television Subscription
A146: 2020-07-01 | B146: MASCC2 | C146: ABSA | D146: C/C Statement | E146: Interest | F146: -88.24 | G146: 535 | H146: 2020-07-01 | I146: Interest Paid
A147: 2020-07-04 | B147: AMXCC1 | C147: Wimpy | D147: Statement | E147: Wimpy | F147: -668 | G147: 701 | H147: 2020-07-04 | I147: Entertainment - Restaurants
A148: 2020-07-07 | B148: MASCC2 | C148: Engen | D148: Statement | E148: Fuel | F148: -513.4 | G148: 440 | H148: 2020-07-07 | I148: Fuel & Vehicle Maintenance
A149: 2020-07-15 | B149: AMXCC1 | C149: PicknPay | D149: Statement | E149: PicknPay | F149: -778 | G149: 458 | H149: 2020-07-15 | I149: Groceries
A150: 2020-07-16 | B150: CACC1 | C150: FNB | D150: Bank Statement | E150: Cash Withdrawal Fee | F150: -15.7 | G150: 540 | H150: 2020-07-16 | I150: Cash Withdrawal Fees
A151: 2020-07-17 | B151: AMXCC1 | C151: Angelos | D151: Statement | E151: Angelos | F151: -696.6 | G151: 701 | H151: 2020-07-17 | I151: Entertainment - Restaurants
A152: 2020-07-18 | B152: MASCC2 | C152: Sasol | D152: Statement | E152: Fuel | F152: -531.1 | G152: 440 | H152: 2020-07-18 | I152: Fuel & Vehicle Maintenance
A153: 2020-07-23 | B153: CACC1 | C153: FNB | D153: Bank Statement | E153: C/C Repayment | F153: -10200 | G153: 999 | H153: 2020-07-23 | I153: Contra Account
A154: 2020-07-23 | B154: AMXCC1 | C154: FNB | D154: C/C Statement | E154: C/C Repayment | F154: 10200 | G154: 999 | H154: 2020-07-23 | I154: Contra Account
A155: 2020-07-25 | B155: CACC1 | C155: Employer Name | D155: Payslip | E155: Gross Salary - July | F155: 36500 | G155: 101 | H155: 2020-07-25 | I155: Gross Remuneration
A156: 2020-07-25 | B156: CACC1 | C156: Employer Name | D156: Payslip | E156: Income Tax - July | F156: -9178.67 | G156: 201 | H156: 2020-07-25 | I156: Income Tax
A157: 2020-07-25 | B157: CACC1 | C157: Employer Name | D157: Payslip | E157: Pension Fund - July | F157: -2737.5 | G157: 205 | H157: 2020-07-25 | I157: Pension Fund
A158: 2020-07-25 | B158: CACC1 | C158: Employer Name | D158: Payslip | E158: Medical Aid - July | F158: -877 | G158: 210 | H158: 2020-07-25 | I158: Medical Aid
A159: 2020-07-25 | B159: CACC1 | C159: Employer Name | D159: Payslip | E159: Unemployment Fund - July | F159: -182.5 | G159: 215 | H159: 2020-07-25 | I159: Unemployment Insurance
A160: 2020-07-25 | B160: CACC1 | C160: FNB | D160: Bank Statement | E160: Monthly Service Fees | F160: -156 | G160: 530 | H160: 2020-07-25 | I160: Bank Charges
A161: 2020-07-26 | B161: AMXCC1 | C161: FNB | D161: C/C Statement | E161: Interest | F161: -189.38 | G161: 535 | H161: 2020-07-26 | I161: Interest Paid
A162: 2020-07-28 | B162: CACC1 | C162: City of Cape Town | D162: Debit Order | E162: Water & Electricity | F162: -532 | G162: 404 | H162: 2020-07-28 | I162: Water, Electricity & Services
A163: 2020-07-28 | B163: CACC1 | C163: Telkom | D163: Debit Order | E163: ADSL Rental | F163: -289 | G163: 416 | H163: 2020-07-28 | I163: Telephone
A164: 2020-07-28 | B164: CACC1 | C164: Vodacom | D164: Debit Order | E164: Cell Phone Charges | F164: -523.6 | G164: 419 | H164: 2020-07-28 | I164: Cell Phone
A165: 2020-07-29 | B165: CACC1 | C165: Mweb | D165: Debit Order | E165: Internet Service Provider | F165: -152 | G165: 422 | H165: 2020-07-29 | I165: Internet Access
A166: 2020-07-29 | B166: MASCC2 | C166: Total | D166: Statement | E166: Fuel | F166: -548.8 | G166: 440 | H166: 2020-07-29 | I166: Fuel & Vehicle Maintenance
A167: 2020-07-29 | B167: CACC1 | C167: ADT | D167: Debit Order | E167: Security Cost | F167: -287 | G167: 467 | H167: 2020-07-29 | I167: Security Costs
A168: 2020-07-29 | B168: CACC1 | C168: Wesbank | D168: Debit Order | E168: Motor Vehicle Instalment | F168: -3331 | G168: 510 | H168: 2020-07-29 | I168: Financing - Motor Vehicles
A169: 2020-07-29 | B169: CACC1 | C169: FNB | D169: Bank Statement | E169: C/C Repayment | F169: -2150 | G169: 999 | H169: 2020-07-29 | I169: Contra Account
A170: 2020-07-29 | B170: MASCC2 | C170: ABSA | D170: C/C Statement | E170: C/C Repayment | F170: 2150 | G170: 999 | H170: 2020-07-29 | I170: Contra Account
A171: 2020-07-30 | B171: AMXCC1 | C171: Shoprite | D171: Statement | E171: Shoprite | F171: -797.7 | G171: 458 | H171: 2020-07-30 | I171: Groceries
A172: 2020-07-30 | B172: AMXCC1 | C172: Grill & Butcher | D172: Statement | E172: Grill & Butcher | F172: -613.4 | G172: 701 | H172: 2020-07-30 | I172: Entertainment - Restaurants
A173: 2020-07-31 | B173: CACC1 | C173: D Domestic | D173: Cash | E173: Cleaning | F173: -620 | G173: 452 | H173: 2020-07-31 | I173: Domestic Wages
A174: 2020-08-01 | B174: CACC1 | C174: Landlord XY | D174: Debit Order | E174: Rent - August | F174: -6100 | G174: 401 | H174: 2020-08-01 | I174: Rent Paid
A175: 2020-08-01 | B175: CACC1 | C175: Mutual & Federal | D175: Debit Order | E175: Insurance | F175: -152 | G175: 425 | H175: 2020-08-01 | I175: Insurance - Short Term
A176: 2020-08-01 | B176: CACC1 | C176: Liberty International | D176: Debit Order | E176: Life Insurance | F176: -561 | G176: 428 | H176: 2020-08-01 | I176: Insurance - Life
A177: 2020-08-01 | B177: CACC1 | C177: Multichoice | D177: Debit Order | E177: DSTV Subscription | F177: -573 | G177: 443 | H177: 2020-08-01 | I177: Television Subscription
A178: 2020-08-01 | B178: MASCC2 | C178: ABSA | D178: C/C Statement | E178: Interest | F178: -87.16 | G178: 535 | H178: 2020-08-01 | I178: Interest Paid
A179: 2020-08-03 | B179: CACC1 | C179: FNB | D179: Bank Statement | E179: Cash Withdrawal Fee | F179: -10.7 | G179: 540 | H179: 2020-08-03 | I179: Cash Withdrawal Fees
A180: 2020-08-09 | B180: MASCC2 | C180: BP | D180: Statement | E180: Fuel | F180: -566.5 | G180: 440 | H180: 2020-08-09 | I180: Fuel & Vehicle Maintenance
A181: 2020-08-12 | B181: AMXCC1 | C181: Quay8 | D181: Statement | E181: Quay8 | F181: -631.1 | G181: 701 | H181: 2020-08-12 | I181: Entertainment - Restaurants
A182: 2020-08-14 | B182: AMXCC1 | C182: Woolworths | D182: Statement | E182: Woolworths | F182: -713.4 | G182: 458 | H182: 2020-08-14 | I182: Groceries
A183: 2020-08-17 | B183: AMXCC1 | C183: Kulula | D183: Statement | E183: Airline Tickets | F183: -53432 | G183: 715 | H183: 2020-08-17 | I183: Travel & Accommodation
A184: 2020-08-20 | B184: MASCC2 | C184: Caltex | D184: Statement | E184: Fuel | F184: -584.2 | G184: 440 | H184: 2020-08-20 | I184: Fuel & Vehicle Maintenance
A185: 2020-08-21 | B185: CACC1 | C185: FNB | D185: Bank Statement | E185: Cash Withdrawal Fee | F185: -10.7 | G185: 540 | H185: 2020-08-21 | I185: Cash Withdrawal Fees
A186: 2020-08-23 | B186: CACC1 | C186: FNB | D186: Bank Statement | E186: C/C Repayment | F186: -10200 | G186: 999 | H186: 2020-08-23 | I186: Contra Account
A187: 2020-08-23 | B187: AMXCC1 | C187: FNB | D187: C/C Statement | E187: C/C Repayment | F187: 10200 | G187: 999 | H187: 2020-08-23 | I187: Contra Account
A188: 2020-08-25 | B188: CACC1 | C188: Employer Name | D188: Payslip | E188: Gross Salary - August | F188: 36500 | G188: 101 | H188: 2020-08-25 | I188: Gross Remuneration
A189: 2020-08-25 | B189: CACC1 | C189: Employer Name | D189: Payslip | E189: Income Tax - August | F189: -9178.67 | G189: 201 | H189: 2020-08-25 | I189: Income Tax
A190: 2020-08-25 | B190: CACC1 | C190: Employer Name | D190: Payslip | E190: Pension Fund - August | F190: -2737.5 | G190: 205 | H190: 2020-08-25 | I190: Pension Fund
A191: 2020-08-25 | B191: CACC1 | C191: Employer Name | D191: Payslip | E191: Medical Aid - August | F191: -877 | G191: 210 | H191: 2020-08-25 | I191: Medical Aid
A192: 2020-08-25 | B192: CACC1 | C192: Employer Name | D192: Payslip | E192: Unemployment Fund - August | F192: -182.5 | G192: 215 | H192: 2020-08-25 | I192: Unemployment Insurance
A193: 2020-08-25 | B193: CACC1 | C193: FNB | D193: Bank Statement | E193: Monthly Service Fees | F193: -159 | G193: 530 | H193: 2020-08-25 | I193: Bank Charges
A194: 2020-08-25 | B194: AMXCC1 | C194: Bethas | D194: Statement | E194: Bethas | F194: -648.8 | G194: 701 | H194: 2020-08-25 | I194: Entertainment - Restaurants
A195: 2020-08-26 | B195: AMXCC1 | C195: FNB | D195: C/C Statement | E195: Interest | F195: -181.42 | G195: 535 | H195: 2020-08-26 | I195: Interest Paid
A196: 2020-08-28 | B196: CACC1 | C196: City of Cape Town | D196: Debit Order | E196: Water & Electricity | F196: -572 | G196: 404 | H196: 2020-08-28 | I196: =IF(ISNA(VLOOKUP(G196,Accounts,2,0))=TRUE,"Account does not exist",VLOOKUP(G196,Accounts,2,0)) -> Water, Electricity & Services
A197: 2020-08-28 | B197: CACC1 | C197: Telkom | D197: Debit Order | E197: ADSL Rental | F197: -289 | G197: 416 | H197: 2020-08-28 | I197: Telephone
A198: 2020-08-28 | B198: CACC1 | C198: Vodacom | D198: Debit Order | E198: Cell Phone Charges | F198: -523.6 | G198: 419 | H198: 2020-08-28 | I198: Cell Phone
A199: 2020-08-29 | B199: CACC1 | C199: Mweb | D199: Debit Order | E199: Internet Service Provider | F199: -152 | G199: 422 | H199: 2020-08-29 | I199: Internet Access
A200: 2020-08-29 | B200: AMXCC1 | C200: SPAR | D200: Statement | E200: SPAR | F200: -731.1 | G200: 458 | H200: 2020-08-29 | I200: Groceries
... 196 more rows

Sheet Report (hidden)
A1: Personal Finance Report | C1: Source | O1: From
A2: Monthly Income & Expenses | D2: =IF(ISBLANK(C2)=TRUE,"All Transactions",VLOOKUP(C2,SourceAll,2,0)) -> All Transactions | O2: To
A3: © www.excel-skills.com
A4: Account Number | B4: Description | C4: =DATE(YEAR(Sources!$C$2),MONTH(Sources!$C$2)+1,0) -> 2020-03-31 | D4: =DATE(YEAR(C4),MONTH(C4)+2,0) -> 2020-04-30 | E4: =DATE(YEAR(D4),MONTH(D4)+2,0) -> 2020-05-31 | F4: 2020-06-30 | G4: 2020-07-31 | H4: 2020-08-31 | I4: 2020-09-30 | J4: 2020-10-31 | K4: 2020-11-30 | L4: 2020-12-31 | M4: 2021-01-31 | N4: 2021-02-28 | P4: Total
A5: 101 | B5: =IF(ISNA(VLOOKUP($A5,Accounts,2,0))=TRUE,"Does Not Exist",VLOOKUP($A5,Accounts,2,0)) -> Gross Remuneration | C5: =IF(ISBLANK($C$2)=TRUE,SUMPRODUCT((DocDate>=DATE(YEAR(C$4),MONTH(C$4),1))*(DocDate<=C$4)*(TrnAcc=$A5)*(TrnAmount)),SUMPRODUCT((DocDate>=DATE(YEAR(C$4),MONTH(C$4),1))*(DocDate<=C$4)*(TrnAcc=$A5)*(TrnSource=$C$2)*(TrnAmount))) -> 36500 | D5: 36500 | E5: 36500 | F5: 36500 | G5: 36500 | H5: 36500 | I5: 39200 | J5: 39200 | K5: 39200 | L5: 39200 | M5: 39200 | N5: 39200 | P5: =IF(ISBLANK($P$1)=TRUE,IF(ISBLANK($P$2)=TRUE,SUM($C5:$N5),IF(ISBLANK($C$2)=TRUE,SUMPRODUCT((DocDate>=DATE(YEAR($C$4),MONTH($C$4),1))*(DocDate<=$P$2)*(TrnAcc=$A5)*(TrnAmount)),SUMPRODUCT((DocDate>=DATE(YEAR($C$4),MONTH($C$4),1))*(DocDate<=$P$2)*(TrnAcc=$A5)*(TrnSource=$C$2)*(TrnAmount)))),IF(ISBLANK($P$2)=TRUE,IF(ISBLANK($C$2)=TRUE,SUMPRODUCT((DocDate>=$P$1)*(TrnAcc=$A5)*(TrnAmount)),SUMPRODUCT((DocDate>=$P$1)*(TrnAcc=$A5)*(TrnSource=$C$2)*(TrnAmount))),IF(ISBLANK($C$2)=TRUE,SUMPRODUCT((DocDate>=$P$1)*(DocDate<=$P$2)*(TrnAcc=$A5)*(TrnAmount)),SUMPRODUCT((DocDate>=$P$1)*(DocDate<=$P$2)*(TrnAcc=$A5)*(TrnSource=$C$2)*(TrnAmount))))) -> 454200
A6: 105 | B6: =IF(ISNA(VLOOKUP($A6,Accounts,2,0))=TRUE,"Does Not Exist",VLOOKUP($A6,Accounts,2,0)) -> Commission Received | C6: 0 | D6: 0 | E6: 0 | F6: 0 | G6: 0 | H6: 0 | I6: 0 | J6: 0 | K6: 0 | L6: 0 | M6: 0 | N6: 0 | P6: =IF(ISBLANK($P$1)=TRUE,IF(ISBLANK($P$2)=TRUE,SUM($C6:$N6),IF(ISBLANK($C$2)=TRUE,SUMPRODUCT((DocDate>=DATE(YEAR($C$4),MONTH($C$4),1))*(DocDate<=$P$2)*(TrnAcc=$A6)*(TrnAmount)),SUMPRODUCT((DocDate>=DATE(YEAR($C$4),MONTH($C$4),1))*(DocDate<=$P$2)*(TrnAcc=$A6)*(TrnSource=$C$2)*(TrnAmount)))),IF(ISBLANK($P$2)=TRUE,IF(ISBLANK($C$2)=TRUE,SUMPRODUCT((DocDate>=$P$1)*(TrnAcc=$A6)*(TrnAmount)),SUMPRODUCT((DocDate>=$P$1)*(TrnAcc=$A6)*(TrnSource=$C$2)*(TrnAmount))),IF(ISBLANK($C$2)=TRUE,SUMPRODUCT((DocDate>=$P$1)*(DocDate<=$P$2)*(TrnAcc=$A6)*(TrnAmount)),SUMPRODUCT((DocDate>=$P$1)*(DocDate<=$P$2)*(TrnAcc=$A6)*(TrnSource=$C$2)*(TrnAmount))))) -> 0
A7: 110 | B7: =IF(ISNA(VLOOKUP($A7,Accounts,2,0))=TRUE,"Does Not Exist",VLOOKUP($A7,Accounts,2,0)) -> Total Allowances | C7: 0 | D7: 0 | E7: 0 | F7: 0 | G7: 0 | H7: 0 | I7: 0 | J7: 0 | K7: 0 | L7: 0 | M7: 0 | N7: 0 | P7: =IF(ISBLANK($P$1)=TRUE,IF(ISBLANK($P$2)=TRUE,SUM($C7:$N7),IF(ISBLANK($C$2)=TRUE,SUMPRODUCT((DocDate>=DATE(YEAR($C$4),MONTH($C$4),1))*(DocDate<=$P$2)*(TrnAcc=$A7)*(TrnAmount)),SUMPRODUCT((DocDate>=DATE(YEAR($C$4),MONTH($C$4),1))*(DocDate<=$P$2)*(TrnAcc=$A7)*(TrnSource=$C$2)*(TrnAmount)))),IF(ISBLANK($P$2)=TRUE,IF(ISBLANK($C$2)=TRUE,SUMPRODUCT((DocDate>=$P$1)*(TrnAcc=$A7)*(TrnAmount)),SUMPRODUCT((DocDate>=$P$1)*(TrnAcc=$A7)*(TrnSource=$C$2)*(TrnAmount))),IF(ISBLANK($C$2)=TRUE,SUMPRODUCT((DocDate>=$P$1)*(DocDate<=$P$2)*(TrnAcc=$A7)*(TrnAmount)),SUMPRODUCT((DocDate>=$P$1)*(DocDate<=$P$2)*(TrnAcc=$A7)*(TrnSource=$C$2)*(TrnAmount))))) -> 0
A8: 115 | B8: =IF(ISNA(VLOOKUP($A8,Accounts,2,0))=TRUE,"Does Not Exist",VLOOKUP($A8,Accounts,2,0)) -> Subsidies Received | C8: 0 | D8: 0 | E8: 0 | F8: 0 | G8: 0 | H8: 0 | I8: 0 | J8: 0 | K8: 0 | L8: 15000 | M8: 0 | N8: 0 | P8: =IF(ISBLANK($P$1)=TRUE,IF(ISBLANK($P$2)=TRUE,SUM($C8:$N8),IF(ISBLANK($C$2)=TRUE,SUMPRODUCT((DocDate>=DATE(YEAR($C$4),MONTH($C$4),1))*(DocDate<=$P$2)*(TrnAcc=$A8)*(TrnAmount)),SUMPRODUCT((DocDate>=DATE(YEAR($C$4),MONTH($C$4),1))*(DocDate<=$P$2)*(TrnAcc=$A8)*(TrnSource=$C$2)*(TrnAmount)))),IF(ISBLANK($P$2)=TRUE,IF(ISBLANK($C$2)=TRUE,SUMPRODUCT((DocDate>=$P$1)*(TrnAcc=$A8)*(TrnAmount)),SUMPRODUCT((DocDate>=$P$1)*(TrnAcc=$A8)*(TrnSource=$C$2)*(TrnAmount))),IF(ISBLANK($C$2)=TRUE,SUMPRODUCT((DocDate>=$P$1)*(DocDate<=$P$2)*(TrnAcc=$A8)*(TrnAmount)),SUMPRODUCT((DocDate>=$P$1)*(DocDate<=$P$2)*(TrnAcc=$A8)*(TrnSource=$C$2)*(TrnAmount))))) -> 15000
A9: 190 | B9: =IF(ISNA(VLOOKUP($A9,Accounts,2,0))=TRUE,"Does Not Exist",VLOOKUP($A9,Accounts,2,0)) -> Other Remuneration | C9: 0 | D9: 0 | E9: 0 | F9: 0 | G9: 0 | H9: 0 | I9: 0 | J9: 0 | K9: 0 | L9: 0 | M9: 0 | N9: 0 | P9: =IF(ISBLANK($P$1)=TRUE,IF(ISBLANK($P$2)=TRUE,SUM($C9:$N9),IF(ISBLANK($C$2)=TRUE,SUMPRODUCT((DocDate>=DATE(YEAR($C$4),MONTH($C$4),1))*(DocDate<=$P$2)*(TrnAcc=$A9)*(TrnAmount)),SUMPRODUCT((DocDate>=DATE(YEAR($C$4),MONTH($C$4),1))*(DocDate<=$P$2)*(TrnAcc=$A9)*(TrnSource=$C$2)*(TrnAmount)))),IF(ISBLANK($P$2)=TRUE,IF(ISBLANK($C$2)=TRUE,SUMPRODUCT((DocDate>=$P$1)*(TrnAcc=$A9)*(TrnAmount)),SUMPRODUCT((DocDate>=$P$1)*(TrnAcc=$A9)*(TrnSource=$C$2)*(TrnAmount))),IF(ISBLANK($C$2)=TRUE,SUMPRODUCT((DocDate>=$P$1)*(DocDate<=$P$2)*(TrnAcc=$A9)*(TrnAmount)),SUMPRODUCT((DocDate>=$P$1)*(DocDate<=$P$2)*(TrnAcc=$A9)*(TrnSource=$C$2)*(TrnAmount))))) -> 0
B10: Total Remuneration | C10: =SUM(OFFSET(C$4,1,0,ROW($B$10)-ROW($B$4)-1,1)) -> 36500 | D10: =SUM(OFFSET(D$4,1,0,ROW($B$10)-ROW($B$4)-1,1)) -> 36500 | E10: 36500 | F10: 36500 | G10: 36500 | H10: 36500 | I10: 39200 | J10: 39200 | K10: 39200 | L10: 54200 | M10: 39200 | N10: 39200 | P10: 469200
A11: 201 | B11: =IF(ISNA(VLOOKUP($A11,Accounts,2,0))=TRUE,"Does Not Exist",VLOOKUP($A11,Accounts,2,0)) -> Income Tax | C11: =IF(ISBLANK($C$2)=TRUE,SUMPRODUCT((DocDate>=DATE(YEAR(C$4),MONTH(C$4),1))*(DocDate<=C$4)*(TrnAcc=$A11)*(TrnAmount)),SUMPRODUCT((DocDate>=DATE(YEAR(C$4),MONTH(C$4),1))*(DocDate<=C$4)*(TrnAcc=$A11)*(TrnSource=$C$2)*(TrnAmount))) -> -9178.67 | D11: -9178.67 | E11: -9178.67 | F11: -9178.67 | G11: -9178.67 | H11: -9178.67 | I11: -10204.67 | J11: -10204.67 | K11: -10204.67 | L11: -10204.67 | M11: -10204.67 | N11: -10204.67 | P11: =IF(ISBLANK($P$1)=TRUE,IF(ISBLANK($P$2)=TRUE,SUM($C11:$N11),IF(ISBLANK($C$2)=TRUE,SUMPRODUCT((DocDate>=DATE(YEAR($C$4),MONTH($C$4),1))*(DocDate<=$P$2)*(TrnAcc=$A11)*(TrnAmount)),SUMPRODUCT((DocDate>=DATE(YEAR($C$4),MONTH($C$4),1))*(DocDate<=$P$2)*(TrnAcc=$A11)*(TrnSource=$C$2)*(TrnAmount)))),IF(ISBLANK($P$2)=TRUE,IF(ISBLANK($C$2)=TRUE,SUMPRODUCT((DocDate>=$P$1)*(TrnAcc=$A11)*(TrnAmount)),SUMPRODUCT((DocDate>=$P$1)*(TrnAcc=$A11)*(TrnSource=$C$2)*(TrnAmount))),IF(ISBLANK($C$2)=TRUE,SUMPRODUCT((DocDate>=$P$1)*(DocDate<=$P$2)*(TrnAcc=$A11)*(TrnAmount)),SUMPRODUCT((DocDate>=$P$1)*(DocDate<=$P$2)*(TrnAcc=$A11)*(TrnSource=$C$2)*(TrnAmount))))) -> -116300.04
A12: 205 | B12: Pension Fund | C12: -2737.5 | D12: -2737.5 | E12: -2737.5 | F12: -2737.5 | G12: -2737.5 | H12: -2737.5 | I12: -2940 | J12: -2940 | K12: -2940 | L12: -2940 | M12: -2940 | N12: -2940 | P12: -34065
A13: 210 | B13: Medical Aid | C13: -877 | D13: -877 | E13: -877 | F13: -877 | G13: -877 | H13: -877 | I13: -877 | J13: -877 | K13: -877 | L13: -877 | M13: -906 | N13: -906 | P13: -10582
A14: 215 | B14: Unemployment Insurance | C14: -182.5 | D14: -182.5 | E14: -182.5 | F14: -182.5 | G14: -182.5 | H14: -182.5 | I14: -196 | J14: -196 | K14: -196 | L14: -196 | M14: -196 | N14: -196 | P14: -2271
A15: 220 | B15: Retirement Annuities | C15: 0 | D15: 0 | E15: 0 | F15: 0 | G15: 0 | H15: 0 | I15: 0 | J15: 0 | K15: 0 | L15: 0 | M15: 0 | N15: 0 | P15: 0
A16: 290 | B16: Other Deductions | C16: 0 | D16: 0 | E16: 0 | F16: 0 | G16: 0 | H16: 0 | I16: 0 | J16: 0 | K16: 0 | L16: 0 | M16: 0 | N16: 0 | P16: 0
B17: Total Deductions | C17: =SUM(OFFSET(C$10,1,0,ROW($B$17)-ROW($B$10)-1,1)) -> -12975.67 | D17: -12975.67 | E17: -12975.67 | F17: -12975.67 | G17: -12975.67 | H17: -12975.67 | I17: -14217.67 | J17: -14217.67 | K17: -14217.67 | L17: -14217.67 | M17: -14246.67 | N17: -14246.67 | P17: -163218.04
B18: Net Remuneration | C18: =SUM(C10,C17) -> 23524.33 | D18: 23524.33 | E18: 23524.33 | F18: 23524.33 | G18: 23524.33 | H18: 23524.33 | I18: 24982.33 | J18: 24982.33 | K18: 24982.33 | L18: 39982.33 | M18: 24953.33 | N18: 24953.33 | P18: =SUM(P10,P17) -> 305981.96
A19: 301 | B19: =IF(ISNA(VLOOKUP($A19,Accounts,2,0))=TRUE,"Does Not Exist",VLOOKUP($A19,Accounts,2,0)) -> Dividend Income | C19: =IF(ISBLANK($C$2)=TRUE,SUMPRODUCT((DocDate>=DATE(YEAR(C$4),MONTH(C$4),1))*(DocDate<=C$4)*(TrnAcc=$A19)*(TrnAmount)),SUMPRODUCT((DocDate>=DATE(YEAR(C$4),MONTH(C$4),1))*(DocDate<=C$4)*(TrnAcc=$A19)*(TrnSource=$C$2)*(TrnAmount))) -> 0 | D19: 0 | E19: 12865 | F19: 0 | G19: 0 | H19: 0 | I19: 0 | J19: 0 | K19: 0 | L19: 0 | M19: 0 | N19: 0 | P19: =IF(ISBLANK($P$1)=TRUE,IF(ISBLANK($P$2)=TRUE,SUM($C19:$N19),IF(ISBLANK($C$2)=TRUE,SUMPRODUCT((DocDate>=DATE(YEAR($C$4),MONTH($C$4),1))*(DocDate<=$P$2)*(TrnAcc=$A19)*(TrnAmount)),SUMPRODUCT((DocDate>=DATE(YEAR($C$4),MONTH($C$4),1))*(DocDate<=$P$2)*(TrnAcc=$A19)*(TrnSource=$C$2)*(TrnAmount)))),IF(ISBLANK($P$2)=TRUE,IF(ISBLANK($C$2)=TRUE,SUMPRODUCT((DocDate>=$P$1)*(TrnAcc=$A19)*(TrnAmount)),SUMPRODUCT((DocDate>=$P$1)*(TrnAcc=$A19)*(TrnSource=$C$2)*(TrnAmount))),IF(ISBLANK($C$2)=TRUE,SUMPRODUCT((DocDate>=$P$1)*(DocDate<=$P$2)*(TrnAcc=$A19)*(TrnAmount)),SUMPRODUCT((DocDate>=$P$1)*(DocDate<=$P$2)*(TrnAcc=$A19)*(TrnSource=$C$2)*(TrnAmount))))) -> 12865
A20: 305 | B20: Interest Received | C20: 0 | D20: 0 | E20: 0 | F20: 0 | G20: 0 | H20: 0 | I20: 0 | J20: 0 | K20: 0 | L20: 0 | M20: 0 | N20: 0 | P20: 0
A21: 310 | B21: Income from Pension | C21: 0 | D21: 0 | E21: 0 | F21: 0 | G21: 0 | H21: 0 | I21: 0 | J21: 0 | K21: 0 | L21: 0 | M21: 0 | N21: 0 | P21: 0
A22: 315 | B22: Income from Annuities | C22: 0 | D22: 0 | E22: 0 | F22: 0 | G22: 0 | H22: 0 | I22: 0 | J22: 0 | K22: 0 | L22: 0 | M22: 0 | N22: 0 | P22: 0
A23: 350 | B23: Loans Received | C23: 0 | D23: 0 | E23: 0 | F23: 0 | G23: 0 | H23: 0 | I23: 0 | J23: 0 | K23: 0 | L23: 0 | M23: 8250 | N23: 0 | P23: 8250
A24: 390 | B24: Other Income | C24: 0 | D24: 0 | E24: 0 | F24: 0 | G24: 0 | H24: 0 | I24: 0 | J24: 0 | K24: 0 | L24: 0 | M24: 0 | N24: 0 | P24: 0
B25: Total Other Income & Receipts | C25: =SUM(OFFSET(C$18,1,0,ROW($B$25)-ROW($B$18)-1,1)) -> 0 | D25: =SUM(OFFSET(D$18,1,0,ROW($B$25)-ROW($B$18)-1,1)) -> 0 | E25: 12865 | F25: 0 | G25: 0 | H25: 0 | I25: 0 | J25: 0 | K25: 0 | L25: 0 | M25: 8250 | N25: 0 | P25: 21115
A26: 401 | B26: =IF(ISNA(VLOOKUP($A26,Accounts,2,0))=TRUE,"Does Not Exist",VLOOKUP($A26,Accounts,2,0)) -> Rent Paid | C26: =IF(ISBLANK($C$2)=TRUE,SUMPRODUCT((DocDate>=DATE(YEAR(C$4),MONTH(C$4),1))*(DocDate<=C$4)*(TrnAcc=$A26)*(TrnAmount)),SUMPRODUCT((DocDate>=DATE(YEAR(C$4),MONTH(C$4),1))*(DocDate<=C$4)*(TrnAcc=$A26)*(TrnSource=$C$2)*(TrnAmount))) -> -6100 | D26: -6100 | E26: -6100 | F26: -6100 | G26: -6100 | H26: -6100 | I26: -6100 | J26: -6450 | K26: -6450 | L26: -6450 | M26: -6450 | N26: -6450 | P26: =IF(ISBLANK($P$1)=TRUE,IF(ISBLANK($P$2)=TRUE,SUM($C26:$N26),IF(ISBLANK($C$2)=TRUE,SUMPRODUCT((DocDate>=DATE(YEAR($C$4),MONTH($C$4),1))*(DocDate<=$P$2)*(TrnAcc=$A26)*(TrnAmount)),SUMPRODUCT((DocDate>=DATE(YEAR($C$4),MONTH($C$4),1))*(DocDate<=$P$2)*(TrnAcc=$A26)*(TrnSource=$C$2)*(TrnAmount)))),IF(ISBLANK($P$2)=TRUE,IF(ISBLANK($C$2)=TRUE,SUMPRODUCT((DocDate>=$P$1)*(TrnAcc=$A26)*(TrnAmount)),SUMPRODUCT((DocDate>=$P$1)*(TrnAcc=$A26)*(TrnSource=$C$2)*(TrnAmount))),IF(ISBLANK($C$2)=TRUE,SUMPRODUCT((DocDate>=$P$1)*(DocDate<=$P$2)*(TrnAcc=$A26)*(TrnAmount)),SUMPRODUCT((DocDate>=$P$1)*(DocDate<=$P$2)*(TrnAcc=$A26)*(TrnSource=$C$2)*(TrnAmount))))) -> -74950
A27: 404 | B27: Water, Electricity & Services | C27: -450 | D27: -348 | E27: -432 | F27: -542 | G27: -532 | H27: -572 | I27: -478 | J27: -321 | K27: -463 | L27: -479 | M27: -521 | N27: -502 | P27: -5640
A28: 407 | B28: Property Rates & Taxes | C28: 0 | D28: 0 | E28: 0 | F28: 0 | G28: 0 | H28: 0 | I28: 0 | J28: 0 | K28: 0 | L28: 0 | M28: 0 | N28: 0 | P28: 0
A29: 410 | B29: Repairs & Maintenance | C29: 0 | D29: 0 | E29: 0 | F29: -1297.21 | G29: 0 | H29: 0 | I29: 0 | J29: 0 | K29: 0 | L29: 0 | M29: 0 | N29: 0 | P29: -1297.21
A30: 413 | B30: Property Levies | C30: 0 | D30: 0 | E30: 0 | F30: 0 | G30: 0 | H30: 0 | I30: 0 | J30: 0 | K30: 0 | L30: 0 | M30: 0 | N30: 0 | P30: 0
A31: 416 | B31: Telephone | C31: -289 | D31: -289 | E31: -289 | F31: -289 | G31: -289 | H31: -289 | I31: -289 | J31: -289 | K31: -289 | L31: -289 | M31: -289 | N31: -289 | P31: -3468
A32: 419 | B32: Cell Phone | C32: -523.6 | D32: -523.6 | E32: -523.6 | F32: -523.6 | G32: -523.6 | H32: -523.6 | I32: -523.6 | J32: -523.6 | K32: -523.6 | L32: -523.6 | M32: -523.6 | N32: -523.6 | P32: -6283.2
A33: 422 | B33: Internet Access | C33: -152 | D33: -152 | E33: -152 | F33: -152 | G33: -152 | H33: -152 | I33: -152 | J33: -152 | K33: -152 | L33: -152 | M33: -152 | N33: -152 | P33: -1824
A34: 425 | B34: Insurance - Short Term | C34: -152 | D34: -152 | E34: -152 | F34: -152 | G34: -152 | H34: -152 | I34: -152 | J34: -152 | K34: -152 | L34: -152 | M34: -152 | N34: -152 | P34: -1824
A35: 428 | B35: Insurance - Life | C35: -561 | D35: -561 | E35: -561 | F35: -561 | G35: -561 | H35: -561 | I35: -561 | J35: -561 | K35: -561 | L35: -561 | M35: -561 | N35: -561 | P35: -6732
A36: 431 | B36: Medical Costs | C36: =IF(ISBLANK($C$2)=TRUE,SUMPRODUCT((DocDate>=DATE(YEAR(C$4),MONTH(C$4),1))*(DocDate<=C$4)*(TrnAcc=$A36)*(TrnAmount)),SUMPRODUCT((DocDate>=DATE(YEAR(C$4),MONTH(C$4),1))*(DocDate<=C$4)*(TrnAcc=$A36)*(TrnSource=$C$2)*(TrnAmount))) -> 0 | D36: 0 | E36: 0 | F36: 0 | G36: 0 | H36: 0 | I36: 0 | J36: 0 | K36: 0 | L36: 0 | M36: 0 | N36: 0 | P36: 0
A37: 434 | B37: Donations | C37: 0 | D37: 0 | E37: -907 | F37: 0 | G37: 0 | H37: 0 | I37: 0 | J37: 0 | K37: 0 | L37: 0 | M37: 0 | N37: 0 | P37: -907
A38: 437 | B38: Education Cost | C38: 0 | D38: 0 | E38: 0 | F38: 0 | G38: 0 | H38: 0 | I38: 0 | J38: 0 | K38: 0 | L38: 0 | M38: 0 | N38: 0 | P38: 0
A39: 440 | B39: Fuel & Vehicle Maintenance | C39: -1309 | D39: -961.5 | E39: -1474.7 | F39: -1734 | G39: -1593.3 | H39: -1652.6 | I39: -1156.9 | J39: -2018.1 | K39: -1877.4 | L39: -2036.7 | M39: -1246.3 | N39: -2002.2 | P39: -19062.7
A40: 443 | B40: Television Subscription | C40: -573 | D40: -573 | E40: -573 | F40: -573 | G40: -573 | H40: -573 | I40: -573 | J40: -573 | K40: -573 | L40: -573 | M40: -573 | N40: -573 | P40: -6876
A41: 446 | B41: Memberships | C41: 0 | D41: 0 | E41: 0 | F41: 0 | G41: 0 | H41: 0 | I41: 0 | J41: 0 | K41: 0 | L41: 0 | M41: 0 | N41: 0 | P41: 0
A42: 449 | B42: Subscriptions | C42: 0 | D42: 0 | E42: 0 | F42: 0 | G42: 0 | H42: 0 | I42: 0 | J42: 0 | K42: 0 | L42: 0 | M42: 0 | N42: 0 | P42: 0
A43: 452 | B43: Domestic Wages | C43: -620 | D43: -620 | E43: -620 | F43: -620 | G43: -620 | H43: -620 | I43: -620 | J43: -620 | K43: -620 | L43: -620 | M43: -620 | N43: -620 | P43: -7440
A44: 455 | B44: Gardening | C44: 0 | D44: 0 | E44: 0 | F44: 0 | G44: 0 | H44: 0 | I44: 0 | J44: 0 | K44: 0 | L44: 0 | M44: 0 | N44: 0 | P44: 0
A45: 458 | B45: Groceries | C45: -1642 | D45: -1739 | E45: -2421.6 | F45: -1502.9 | G45: -1575.7 | H45: -1444.5 | I45: -1515.5 | J45: -1486.1 | K45: -1556.9 | L45: -1727.7 | M45: -1698.5 | N45: -1669.3 | P45: -19979.7
A46: 461 | B46: Clothing | C46: 0 | D46: 0 | E46: 0 | F46: 0 | G46: 0 | H46: 0 | I46: 0 | J46: 0 | K46: 0 | L46: 0 | M46: 0 | N46: 0 | P46: 0
A47: 464 | B47: Maintenance Payments | C47: 0 | D47: 0 | E47: 0 | F47: 0 | G47: 0 | H47: 0 | I47: 0 | J47: 0 | K47: 0 | L47: 0 | M47: 0 | N47: 0 | P47: 0
A48: 467 | B48: Security Costs | C48: -287 | D48: -287 | E48: -287 | F48: -287 | G48: -287 | H48: -287 | I48: -287 | J48: -287 | K48: -287 | L48: -287 | M48: -287 | N48: -287 | P48: -3444
A49: 490 | B49: Other Expenses | C49: 0 | D49: 0 | E49: 0 | F49: 0 | G49: 0 | H49: 0 | I49: 0 | J49: 0 | K49: 0 | L49: 0 | M49: 0 | N49: 0 | P49: 0
B50: Total Expenses | C50: =SUM(OFFSET(C$25,1,0,ROW($B$50)-ROW($B$25)-1,1)) -> -12658.6 | D50: =SUM(OFFSET(D$25,1,0,ROW($B$50)-ROW($B$25)-1,1)) -> -12306.1 | E50: -14492.9 | F50: -14333.71 | G50: -12958.6 | H50: -12926.7 | I50: -12408 | J50: -13432.8 | K50: -13504.9 | L50: -13851 | M50: -13073.4 | N50: -13781.1 | P50: -159727.81
A51: 501 | B51: =IF(ISNA(VLOOKUP($A51,Accounts,2,0))=TRUE,"Does Not Exist",VLOOKUP($A51,Accounts,2,0)) -> Home Loan Repayments - Primary Residence | C51: =IF(ISBLANK($C$2)=TRUE,SUMPRODUCT((DocDate>=DATE(YEAR(C$4),MONTH(C$4),1))*(DocDate<=C$4)*(TrnAcc=$A51)*(TrnAmount)),SUMPRODUCT((DocDate>=DATE(YEAR(C$4),MONTH(C$4),1))*(DocDate<=C$4)*(TrnAcc=$A51)*(TrnSource=$C$2)*(TrnAmount))) -> 0 | D51: 0 | E51: 0 | F51: 0 | G51: 0 | H51: 0 | I51: 0 | J51: 0 | K51: 0 | L51: 0 | M51: 0 | N51: 0 | P51: =IF(ISBLANK($P$1)=TRUE,IF(ISBLANK($P$2)=TRUE,SUM($C51:$N51),IF(ISBLANK($C$2)=TRUE,SUMPRODUCT((DocDate>=DATE(YEAR($C$4),MONTH($C$4),1))*(DocDate<=$P$2)*(TrnAcc=$A51)*(TrnAmount)),SUMPRODUCT((DocDate>=DATE(YEAR($C$4),MONTH($C$4),1))*(DocDate<=$P$2)*(TrnAcc=$A51)*(TrnSource=$C$2)*(TrnAmount)))),IF(ISBLANK($P$2)=TRUE,IF(ISBLANK($C$2)=TRUE,SUMPRODUCT((DocDate>=$P$1)*(TrnAcc=$A51)*(TrnAmount)),SUMPRODUCT((DocDate>=$P$1)*(TrnAcc=$A51)*(TrnSource=$C$2)*(TrnAmount))),IF(ISBLANK($C$2)=TRUE,SUMPRODUCT((DocDate>=$P$1)*(DocDate<=$P$2)*(TrnAcc=$A51)*(TrnAmount)),SUMPRODUCT((DocDate>=$P$1)*(DocDate<=$P$2)*(TrnAcc=$A51)*(TrnSource=$C$2)*(TrnAmount))))) -> 0
A52: 505 | B52: Personal Loan Instalments | C52: 0 | D52: 0 | E52: 0 | F52: 0 | G52: 0 | H52: 0 | I52: 0 | J52: 0 | K52: 0 | L52: 0 | M52: 0 | N52: 0 | P52: 0
A53: 510 | B53: Financing - Motor Vehicles | C53: -3331 | D53: -3331 | E53: -3331 | F53: -3331 | G53: -3331 | H53: -3331 | I53: -3331 | J53: -3331 | K53: -3331 | L53: -3331 | M53: -3331 | N53: -3331 | P53: -39972
A54: 515 | B54: Financing - Computers | C54: 0 | D54: 0 | E54: 0 | F54: 0 | G54: 0 | H54: 0 | I54: 0 | J54: 0 | K54: 0 | L54: 0 | M54: 0 | N54: 0 | P54: 0
A55: 520 | B55: Financing - Furniture | C55: 0 | D55: 0 | E55: 0 | F55: 0 | G55: 0 | H55: 0 | I55: 0 | J55: 0 | K55: 0 | L55: 0 | M55: 0 | N55: 0 | P55: 0
A56: 525 | B56: Credit Card Repayments | C56: 0 | D56: 0 | E56: 0 | F56: 0 | G56: 0 | H56: 0 | I56: 0 | J56: 0 | K56: 0 | L56: 0 | M56: 0 | N56: 0 | P56: 0
A57: 530 | B57: Bank Charges | C57: -162 | D57: -168 | E57: -161 | F57: -169 | G57: -156 | H57: -159 | I57: -167 | J57: -172 | K57: -191 | L57: -151 | M57: -187 | N57: -172 | P57: -2015
A58: 535 | B58: Interest Paid | C58: -270.85 | D58: -281.86 | E58: -272.82 | F58: -266.61 | G58: -277.62 | H58: -268.58 | I58: -262.37 | J58: -277.44 | K58: -272.46 | L58: -270.31 | M58: -285.38 | N58: -280.4 | P58: -3286.7
A59: 540 | B59: Cash Withdrawal Fees | C59: -21.4 | D59: -10.7 | E59: -21.4 | F59: -21.4 | G59: -15.7 | H59: -21.4 | I59: -21.4 | J59: -15.7 | K59: -21.4 | L59: -21.4 | M59: -26.4 | N59: -10.7 | P59: -229
A60: 590 | B60: Other Financing Costs | C60: 0 | D60: 0 | E60: 0 | F60: 0 | G60: 0 | H60: 0 | I60: 0 | J60: 0 | K60: 0 | L60: 0 | M60: 0 | N60: 0 | P60: 0
B61: Total Financing Cost & Bank Charges | C61: =SUM(OFFSET(C$50,1,0,ROW($B$61)-ROW($B$50)-1,1)) -> -3785.25 | D61: =SUM(OFFSET(D$50,1,0,ROW($B$61)-ROW($B$50)-1,1)) -> -3791.56 | E61: -3786.22 | F61: -3788.01 | G61: -3780.32 | H61: -3779.98 | I61: -3781.77 | J61: -3796.14 | K61: -3815.86 | L61: -3773.71 | M61: -3829.78 | N61: -3794.1 | P61: -45502.7
A62: 601 | B62: =IF(ISNA(VLOOKUP($A62,Accounts,2,0))=TRUE,"Does Not Exist",VLOOKUP($A62,Accounts,2,0)) -> Property Rental Income | C62: =IF(ISBLANK($C$2)=TRUE,SUMPRODUCT((DocDate>=DATE(YEAR(C$4),MONTH(C$4),1))*(DocDate<=C$4)*(TrnAcc=$A62)*(TrnAmount)),SUMPRODUCT((DocDate>=DATE(YEAR(C$4),MONTH(C$4),1))*(DocDate<=C$4)*(TrnAcc=$A62)*(TrnSource=$C$2)*(TrnAmount))) -> 0 | D62: 0 | E62: 0 | F62: 0 | G62: 0 | H62: 0 | I62: 0 | J62: 0 | K62: 0 | L62: 0 | M62: 0 | N62: 0 | P62: =IF(ISBLANK($P$1)=TRUE,IF(ISBLANK($P$2)=TRUE,SUM($C62:$N62),IF(ISBLANK($C$2)=TRUE,SUMPRODUCT((DocDate>=DATE(YEAR($C$4),MONTH($C$4),1))*(DocDate<=$P$2)*(TrnAcc=$A62)*(TrnAmount)),SUMPRODUCT((DocDate>=DATE(YEAR($C$4),MONTH($C$4),1))*(DocDate<=$P$2)*(TrnAcc=$A62)*(TrnSource=$C$2)*(TrnAmount)))),IF(ISBLANK($P$2)=TRUE,IF(ISBLANK($C$2)=TRUE,SUMPRODUCT((DocDate>=$P$1)*(TrnAcc=$A62)*(TrnAmount)),SUMPRODUCT((DocDate>=$P$1)*(TrnAcc=$A62)*(TrnSource=$C$2)*(TrnAmount))),IF(ISBLANK($C$2)=TRUE,SUMPRODUCT((DocDate>=$P$1)*(DocDate<=$P$2)*(TrnAcc=$A62)*(TrnAmount)),SUMPRODUCT((DocDate>=$P$1)*(DocDate<=$P$2)*(TrnAcc=$A62)*(TrnSource=$C$2)*(TrnAmount))))) -> 0
A63: 605 | B63: Home Loan Repayments - Buy to Let | C63: 0 | D63: 0 | E63: 0 | F63: 0 | G63: 0 | H63: 0 | I63: 0 | J63: 0 | K63: 0 | L63: 0 | M63: 0 | N63: 0 | P63: 0
A64: 610 | B64: Investment - Retirement Annuities | C64: 0 | D64: 0 | E64: 0 | F64: 0 | G64: 0 | H64: 0 | I64: 0 | J64: 0 | K64: 0 | L64: 0 | M64: 0 | N64: 0 | P64: 0
A65: 615 | B65: Investment - Shares | C65: 0 | D65: 0 | E65: 0 | F65: -14500 | G65: 0 | H65: 0 | I65: 0 | J65: 0 | K65: 0 | L65: 0 | M65: 0 | N65: 0 | P65: -14500
A66: 620 | B66: Investment - Money Market | C66: 0 | D66: 0 | E66: 0 | F66: 0 | G66: 0 | H66: 0 | I66: 0 | J66: 0 | K66: 0 | L66: 0 | M66: 0 | N66: 0 | P66: 0
A67: 625 | B67: Furniture & Equipment | C67: 0 | D67: 0 | E67: 0 | F67: 0 | G67: 0 | H67: 0 | I67: -22389.32 | J67: 0 | K67: 0 | L67: 0 | M67: 0 | N67: 0 | P67: -22389.32
A68: 690 | B68: Other Assets | C68: 0 | D68: 0 | E68: 0 | F68: 0 | G68: 0 | H68: 0 | I68: 0 | J68: 0 | K68: 0 | L68: 0 | M68: 0 | N68: 0 | P68: 0
A69: 695 | B69: Other Investments | C69: 0 | D69: 0 | E69: 0 | F69: 0 | G69: 0 | H69: 0 | I69: 0 | J69: 0 | K69: 0 | L69: 0 | M69: 0 | N69: 0 | P69: 0
B70: Total Investments & Assets | C70: =SUM(OFFSET(C$61,1,0,ROW($B$70)-ROW($B$61)-1,1)) -> 0 | D70: =SUM(OFFSET(D$61,1,0,ROW($B$70)-ROW($B$61)-1,1)) -> 0 | E70: 0 | F70: -14500 | G70: 0 | H70: 0 | I70: -22389.32 | J70: 0 | K70: 0 | L70: 0 | M70: 0 | N70: 0 | P70: -36889.32
A71: 701 | B71: =IF(ISNA(VLOOKUP($A71,Accounts,2,0))=TRUE,"Does Not Exist",VLOOKUP($A71,Accounts,2,0)) -> Entertainment - Restaurants | C71: =IF(ISBLANK($C$2)=TRUE,SUMPRODUCT((DocDate>=DATE(YEAR(C$4),MONTH(C$4),1))*(DocDate<=C$4)*(TrnAcc=$A71)*(TrnAmount)),SUMPRODUCT((DocDate>=DATE(YEAR(C$4),MONTH(C$4),1))*(DocDate<=C$4)*(TrnAcc=$A71)*(TrnSource=$C$2)*(TrnAmount))) -> -642 | D71: -1078.5 | E71: -932.1 | F71: -1302.9 | G71: -1978 | H71: -1279.9 | I71: -1350.8 | J71: -1758.8 | K71: -1127.7 | L71: -1095.5 | M71: -1069 | N71: 0 | P71: =IF(ISBLANK($P$1)=TRUE,IF(ISBLANK($P$2)=TRUE,SUM($C71:$N71),IF(ISBLANK($C$2)=TRUE,SUMPRODUCT((DocDate>=DATE(YEAR($C$4),MONTH($C$4),1))*(DocDate<=$P$2)*(TrnAcc=$A71)*(TrnAmount)),SUMPRODUCT((DocDate>=DATE(YEAR($C$4),MONTH($C$4),1))*(DocDate<=$P$2)*(TrnAcc=$A71)*(TrnSource=$C$2)*(TrnAmount)))),IF(ISBLANK($P$2)=TRUE,IF(ISBLANK($C$2)=TRUE,SUMPRODUCT((DocDate>=$P$1)*(TrnAcc=$A71)*(TrnAmount)),SUMPRODUCT((DocDate>=$P$1)*(TrnAcc=$A71)*(TrnSource=$C$2)*(TrnAmount))),IF(ISBLANK($C$2)=TRUE,SUMPRODUCT((DocDate>=$P$1)*(DocDate<=$P$2)*(TrnAcc=$A71)*(TrnAmount)),SUMPRODUCT((DocDate>=$P$1)*(DocDate<=$P$2)*(TrnAcc=$A71)*(TrnSource=$C$2)*(TrnAmount))))) -> -13615.2
A72: 705 | B72: =IF(ISNA(VLOOKUP($A72,Accounts,2,0))=TRUE,"Does Not Exist",VLOOKUP($A72,Accounts,2,0)) -> Entertainment - Bars | C72: 0 | D72: 0 | E72: 0 | F72: 0 | G72: 0 | H72: 0 | I72: 0 | J72: 0 | K72: 0 | L72: 0 | M72: 0 | N72: 0 | P72: =IF(ISBLANK($P$1)=TRUE,IF(ISBLANK($P$2)=TRUE,SUM($C72:$N72),IF(ISBLANK($C$2)=TRUE,SUMPRODUCT((DocDate>=DATE(YEAR($C$4),MONTH($C$4),1))*(DocDate<=$P$2)*(TrnAcc=$A72)*(TrnAmount)),SUMPRODUCT((DocDate>=DATE(YEAR($C$4),MONTH($C$4),1))*(DocDate<=$P$2)*(TrnAcc=$A72)*(TrnSource=$C$2)*(TrnAmount)))),IF(ISBLANK($P$2)=TRUE,IF(ISBLANK($C$2)=TRUE,SUMPRODUCT((DocDate>=$P$1)*(TrnAcc=$A72)*(TrnAmount)),SUMPRODUCT((DocDate>=$P$1)*(TrnAcc=$A72)*(TrnSource=$C$2)*(TrnAmount))),IF(ISBLANK($C$2)=TRUE,SUMPRODUCT((DocDate>=$P$1)*(DocDate<=$P$2)*(TrnAcc=$A72)*(TrnAmount)),SUMPRODUCT((DocDate>=$P$1)*(DocDate<=$P$2)*(TrnAcc=$A72)*(TrnSource=$C$2)*(TrnAmount))))) -> 0
A73: 710 | B73: =IF(ISNA(VLOOKUP($A73,Accounts,2,0))=TRUE,"Does Not Exist",VLOOKUP($A73,Accounts,2,0)) -> Entertainment - Other | C73: 0 | D73: 0 | E73: 0 | F73: 0 | G73: 0 | H73: 0 | I73: 0 | J73: 0 | K73: 0 | L73: 0 | M73: 0 | N73: 0 | P73: =IF(ISBLANK($P$1)=TRUE,IF(ISBLANK($P$2)=TRUE,SUM($C73:$N73),IF(ISBLANK($C$2)=TRUE,SUMPRODUCT((DocDate>=DATE(YEAR($C$4),MONTH($C$4),1))*(DocDate<=$P$2)*(TrnAcc=$A73)*(TrnAmount)),SUMPRODUCT((DocDate>=DATE(YEAR($C$4),MONTH($C$4),1))*(DocDate<=$P$2)*(TrnAcc=$A73)*(TrnSource=$C$2)*(TrnAmount)))),IF(ISBLANK($P$2)=TRUE,IF(ISBLANK($C$2)=TRUE,SUMPRODUCT((DocDate>=$P$1)*(TrnAcc=$A73)*(TrnAmount)),SUMPRODUCT((DocDate>=$P$1)*(TrnAcc=$A73)*(TrnSource=$C$2)*(TrnAmount))),IF(ISBLANK($C$2)=TRUE,SUMPRODUCT((DocDate>=$P$1)*(DocDate<=$P$2)*(TrnAcc=$A73)*(TrnAmount)),SUMPRODUCT((DocDate>=$P$1)*(DocDate<=$P$2)*(TrnAcc=$A73)*(TrnSource=$C$2)*(TrnAmount))))) -> 0
A74: 715 | B74: =IF(ISNA(VLOOKUP($A74,Accounts,2,0))=TRUE,"Does Not Exist",VLOOKUP($A74,Accounts,2,0)) -> Travel & Accommodation | C74: 0 | D74: 0 | E74: 0 | F74: 0 | G74: 0 | H74: -53432 | I74: 0 | J74: 0 | K74: 0 | L74: 0 | M74: 0 | N74: 0 | P74: =IF(ISBLANK($P$1)=TRUE,IF(ISBLANK($P$2)=TRUE,SUM($C74:$N74),IF(ISBLANK($C$2)=TRUE,SUMPRODUCT((DocDate>=DATE(YEAR($C$4),MONTH($C$4),1))*(DocDate<=$P$2)*(TrnAcc=$A74)*(TrnAmount)),SUMPRODUCT((DocDate>=DATE(YEAR($C$4),MONTH($C$4),1))*(DocDate<=$P$2)*(TrnAcc=$A74)*(TrnSource=$C$2)*(TrnAmount)))),IF(ISBLANK($P$2)=TRUE,IF(ISBLANK($C$2)=TRUE,SUMPRODUCT((DocDate>=$P$1)*(TrnAcc=$A74)*(TrnAmount)),SUMPRODUCT((DocDate>=$P$1)*(TrnAcc=$A74)*(TrnSource=$C$2)*(TrnAmount))),IF(ISBLANK($C$2)=TRUE,SUMPRODUCT((DocDate>=$P$1)*(DocDate<=$P$2)*(TrnAcc=$A74)*(TrnAmount)),SUMPRODUCT((DocDate>=$P$1)*(DocDate<=$P$2)*(TrnAcc=$A74)*(TrnSource=$C$2)*(TrnAmount))))) -> -53432
A75: 790 | B75: =IF(ISNA(VLOOKUP($A75,Accounts,2,0))=TRUE,"Does Not Exist",VLOOKUP($A75,Accounts,2,0)) -> Other Expenses | C75: 0 | D75: 0 | E75: 0 | F75: 0 | G75: 0 | H75: 0 | I75: 0 | J75: 0 | K75: 0 | L75: 0 | M75: 0 | N75: 0 | P75: =IF(ISBLANK($P$1)=TRUE,IF(ISBLANK($P$2)=TRUE,SUM($C75:$N75),IF(ISBLANK($C$2)=TRUE,SUMPRODUCT((DocDate>=DATE(YEAR($C$4),MONTH($C$4),1))*(DocDate<=$P$2)*(TrnAcc=$A75)*(TrnAmount)),SUMPRODUCT((DocDate>=DATE(YEAR($C$4),MONTH($C$4),1))*(DocDate<=$P$2)*(TrnAcc=$A75)*(TrnSource=$C$2)*(TrnAmount)))),IF(ISBLANK($P$2)=TRUE,IF(ISBLANK($C$2)=TRUE,SUMPRODUCT((DocDate>=$P$1)*(TrnAcc=$A75)*(TrnAmount)),SUMPRODUCT((DocDate>=$P$1)*(TrnAcc=$A75)*(TrnSource=$C$2)*(TrnAmount))),IF(ISBLANK($C$2)=TRUE,SUMPRODUCT((DocDate>=$P$1)*(DocDate<=$P$2)*(TrnAcc=$A75)*(TrnAmount)),SUMPRODUCT((DocDate>=$P$1)*(DocDate<=$P$2)*(TrnAcc=$A75)*(TrnSource=$C$2)*(TrnAmount))))) -> 0
B76: Total Entertainment & Leisure Costs | C76: =SUM(OFFSET(C$70,1,0,ROW($B$76)-ROW($B$70)-1,1)) -> -642 | D76: =SUM(OFFSET(D$70,1,0,ROW($B$76)-ROW($B$70)-1,1)) -> -1078.5 | E76: -932.1 | F76: -1302.9 | G76: -1978 | H76: -54711.9 | I76: -1350.8 | J76: -1758.8 | K76: -1127.7 | L76: -1095.5 | M76: -1069 | N76: 0 | P76: -67047.2
A77: 999 | B77: =IF(ISNA(VLOOKUP($A77,Accounts,2,0))=TRUE,"Does Not Exist",VLOOKUP($A77,Accounts,2,0)) -> Contra Account | C77: =IF(ISBLANK($C$2)=TRUE,SUMPRODUCT((DocDate>=DATE(YEAR(C$4),MONTH(C$4),1))*(DocDate<=C$4)*(TrnAcc=$A77)*(TrnAmount)),SUMPRODUCT((DocDate>=DATE(YEAR(C$4),MONTH(C$4),1))*(DocDate<=C$4)*(TrnAcc=$A77)*(TrnSource=$C$2)*(TrnAmount))) -> 0 | D77: 0 | E77: 0 | F77: 0 | G77: 0 | H77: 0 | I77: 0 | J77: 0 | K77: 0 | L77: 0 | M77: 0 | N77: 0 | P77: =IF(ISBLANK($P$1)=TRUE,IF(ISBLANK($P$2)=TRUE,SUM($C77:$N77),IF(ISBLANK($C$2)=TRUE,SUMPRODUCT((DocDate>=DATE(YEAR($C$4),MONTH($C$4),1))*(DocDate<=$P$2)*(TrnAcc=$A77)*(TrnAmount)),SUMPRODUCT((DocDate>=DATE(YEAR($C$4),MONTH($C$4),1))*(DocDate<=$P$2)*(TrnAcc=$A77)*(TrnSource=$C$2)*(TrnAmount)))),IF(ISBLANK($P$2)=TRUE,IF(ISBLANK($C$2)=TRUE,SUMPRODUCT((DocDate>=$P$1)*(TrnAcc=$A77)*(TrnAmount)),SUMPRODUCT((DocDate>=$P$1)*(TrnAcc=$A77)*(TrnSource=$C$2)*(TrnAmount))),IF(ISBLANK($C$2)=TRUE,SUMPRODUCT((DocDate>=$P$1)*(DocDate<=$P$2)*(TrnAcc=$A77)*(TrnAmount)),SUMPRODUCT((DocDate>=$P$1)*(DocDate<=$P$2)*(TrnAcc=$A77)*(TrnSource=$C$2)*(TrnAmount))))) -> 0
B79: Surplus / (Shortfall) for the month | C79: =SUM(C10,C17,C25,C50,C61,C70,C76,C77) -> 6438.48 | D79: 6348.17 | E79: 17178.11 | F79: -10400.29 | G79: 4807.41 | H79: -47894.25 | I79: -14947.56 | J79: 5994.59 | K79: 6533.87 | L79: 21262.12 | M79: 15231.15 | N79: 7378.13 | P79: =SUM(P10,P17,P25,P50,P61,P70,P76,P77) -> 17929.93
